Workbook

Sheet Konzentration
A1: Nr. | B1: Prim.Zähl-ergebnis 1 | C1: Prim.Zähl-ergebnis 2 | D1: diff | E1: Betrag der diff | F1: diff rel | G1: Betrag der diff rel. | H1: MW | I1: 1.96x AE | J1: Frei-gabe diff | K1: Frei-gabe diff rel | L1: Verdün-nung (n-fach) | M1: Ergebnis für Befund (Mio/ml) | N1: Datum
A2: 1 | D2: =(B2-C2) -> 0 | E2: =ABS(D2) -> 0 | F2: =D2/H2 ->  | G2: =ABS(F2) ->  | H2: =AVERAGE(B2:C2) ->  | I2: =1.96*SQRT(2*H2) ->  | J2: =IF(OR(E2>I2),"!!!!!!","OK") ->  | K2: =IF(OR(G2>I2),"!!!!!!","OK") ->  | M2: =(H2*L2)/100 ->  | P2: Beispiel: erste Zählung ergab 200 Spermien, zweite 210 Spermien. Ergebnis ist unter B und C eingetragen. Die Verdünnung war 1:20, also ist die Zahl 20 unter L eingetragen worden. Das Ergebnis in Mio/ml erscheint automatisch unter M
A3: 2 | D3: 0 | E3: =ABS(D3) -> 0 | G3: =ABS(F3) ->  | I3: =1.96*SQRT(2*H3) ->  | J3: =IF(OR(E3>I3),"!!!!!!","OK") ->  | K3: =IF(OR(G3>I3),"!!!!!!","OK") ->  | M3: =(H3*L3)/100 -> 
A4: 3 | D4: 0 | E4: 0 | M4: =(H4*L4)/100 -> 
A5: 4 | D5: 0 | E5: 0
A6: 5 | D6: 0 | E6: 0
A7: 6 | D7: 0 | E7: 0
A8: 7 | D8: 0 | E8: 0
A9: 8 | D9: 0 | E9: 0
A10: 9 | D10: 0 | E10: 0
A11: 10 | D11: 0 | E11: 0
A12: 11 | D12: 0 | E12: 0
A13: 12 | D13: 0 | E13: 0
A14: 13 | D14: 0 | E14: 0
A15: 14 | D15: 0 | E15: 0
A16: 15 | D16: 0 | E16: 0
A17: 16 | D17: 0 | E17: 0
A18: 17 | D18: 0 | E18: 0
A19: 18 | D19: 0 | E19: 0
A20: 19 | D20: 0 | E20: 0
A21: 20 | D21: 0 | E21: 0
A22: 21 | D22: 0 | E22: 0
A23: 22 | D23: 0 | E23: 0
A24: 23 | D24: 0 | E24: 0
A25: 24 | D25: 0 | E25: 0
A26: 25 | D26: 0 | E26: 0
A27: 26 | D27: 0 | E27: 0
A28: 27 | D28: 0 | E28: 0
A29: 28 | D29: 0 | E29: 0
A30: 29 | D30: 0 | E30: 0
A31: 30 | D31: 0 | E31: 0
A32: 31 | D32: 0 | E32: 0
A33: 32 | D33: 0 | E33: 0
A34: 33 | D34: =(B34-C34) -> 0 | E34: 0 | F34: =D34/H34 ->  | H34: =AVERAGE(B34:C34) -> 
A35: 34 | D35: 0 | E35: 0
A36: 35 | D36: 0 | E36: 0
A37: 36 | D37: 0 | E37: 0
A38: 37 | D38: 0 | E38: 0
A39: 38 | D39: 0 | E39: 0
A40: 39 | D40: 0 | E40: 0
A41: 40 | D41: 0 | E41: 0
A42: 41 | D42: 0 | E42: 0
A43: 42 | D43: 0 | E43: 0
A44: 43 | D44: 0 | E44: 0
A45: 44 | D45: 0 | E45: 0
A46: 45 | D46: 0 | E46: 0
A47: 46 | D47: 0 | E47: 0
A48: 47 | D48: 0 | E48: 0
A49: 48 | D49: 0 | E49: 0
A50: 49 | D50: 0 | E50: 0
A51: 50 | D51: 0 | E51: 0
B54: n= | D54: =COUNT(B2:B51) -> 0
B55: MW diff= | D55: =AVERAGE(D2:D51) -> 0
B56: Median= | D56: =MEDIAN(D2:D51) -> 0
B57: s(diff)= | D57: =STDEV(D2:D51) -> 0
B58: Prüfgröße= | D58: =1.96*D57/SQRT(D54) -> 
B62: MW diff soll kleiner sein als die Prüfgröße

Sheet Motilität PR a+b
A1: Nr. | B1: Mot. a+b1 (%) | C1: Mot. a+b2 (%) | D1: Anzahl N der differen-zierten Zellen | E1: diff | F1: Betrag der diff | G1: MW | H1: 1.96x sqrt | I1: Frei-gabe | K1: Datum
A2: 1 | B2: 30 | C2: 33 | D2: 200 | E2: =(B2-C2) -> -3 | F2: =ABS(C2-B2) -> 3 | G2: =AVERAGE(B2:C2) -> 31.5 | H2: =1.96*SQRT(2*G2*(100-G2)/D2) -> 9.10451119 | I2: =IF(OR(F2>H2),"!!!!!!","OK") -> OK | K2: 2014-01-15
A3: 2 | B3: 36 | C3: 31 | D3: 200 | E3: =(B3-C3) -> 5 | F3: =ABS(C3-B3) -> 5 | G3: =AVERAGE(B3:C3) -> 33.5 | H3: =1.96*SQRT(2*G3*(100-G3)/D3) -> 9.251013134 | I3: =IF(OR(F3>H3),"!!!!!!","OK") -> OK | K3: 2014-01-21
A4: 3 | B4: 8 | C4: 8 | D4: 200 | E4: =(B4-C4) -> 0 | F4: 0 | G4: 8 | H4: 5.317346707 | I4: OK | K4: 2014-01-22
A5: 4 | B5: 62 | C5: 53 | D5: 200 | E5: =(B5-C5) -> 9 | F5: =ABS(C5-B5) -> 9 | G5: =AVERAGE(B5:C5) -> 57.5 | H5: 9.689122767 | I5: OK | K5: 2014-02-03
A6: 5 | B6: 20 | C6: 27 | D6: 200 | E6: =(B6-C6) -> -7 | F6: 7 | G6: 23.5 | H6: 8.310376887 | I6: OK | K6: 2014-02-11
A7: 6 | B7: 20 | C7: 28 | D7: 200 | E7: -8 | F7: 8 | G7: 24 | H7: 8.37082935 | I7: OK | K7: 2014-02-12
A8: 7 | B8: 25 | C8: 18 | D8: 200 | E8: 7 | F8: 7 | G8: =AVERAGE(B8:C8) -> 21.5 | H8: 8.052117982 | I8: OK | K8: 2014-02-17
A9: 8 | B9: 31 | C9: 35 | D9: 200 | E9: -4 | F9: 4 | G9: 33 | H9: 9.216169269 | I9: OK | K9: 2014-02-18
A10: 9 | B10: 7 | C10: 12 | D10: 200 | E10: -5 | F10: 5 | G10: 9.5 | H10: 5.747012789 | I10: OK | K10: 2014-02-24
A11: 10 | B11: 26 | C11: 24 | D11: 200 | E11: 2 | F11: 2 | G11: 25 | H11: 8.487048957 | I11: OK | K11: 2014-02-25
A12: 11 | B12: 35 | C12: 42 | D12: 200 | E12: -7 | F12: 7 | G12: 38.5 | H12: 9.537268162 | I12: OK | K12: 2014-03-05
A13: 12 | B13: 36 | C13: 32 | D13: 200 | E13: 4 | F13: 4 | G13: 34 | H13: 9.284691917 | I13: OK | K13: 2014-03-10
A14: 13 | B14: 32 | C14: 24 | D14: 200 | E14: 8 | F14: 8 | G14: 28 | H14: 8.800378174 | I14: OK | K14: 2014-03-12
A15: 14 | B15: 30 | C15: 26 | D15: 200 | E15: 4 | F15: 4 | G15: 28 | H15: 8.800378174 | I15: OK | K15: 2014-03-18
A16: 15 | B16: 46 | C16: 51 | D16: 200 | E16: -5 | F16: 5 | G16: 48.5 | H16: 9.795589007 | I16: OK | K16: 2014-03-19
A17: 16 | B17: 12 | C17: 18 | D17: 200 | E17: -6 | F17: 6 | G17: 15 | H17: 6.99859986 | I17: OK | K17: 2014-04-21
A18: 17 | B18: 42 | C18: 42 | D18: 200 | E18: 0 | F18: 0 | G18: 42 | H18: 9.673746741 | I18: OK | K18: 2014-04-28
A19: 18 | B19: 32 | C19: 38 | D19: 200 | E19: -6 | F19: 6 | G19: 35 | H19: 9.348604174 | I19: OK | K19: 2014-04-30
A20: 19 | B20: 55 | C20: 46 | D20: 200 | E20: 9 | F20: 9 | G20: 50.5 | H20: 9.799509988 | I20: OK | K20: 2014-05-06
A21: 20 | B21: 0 | C21: 0 | D21: 0 | E21: 0 | F21: 0 | G21: 0 | K21: 2014-05-07
A22: 21 | B22: 33 | C22: 32 | D22: 200 | E22: 1 | F22: 1 | G22: 32.5 | H22: 9.180147058 | I22: OK | K22: 2014-05-13
A23: 22 | B23: 23 | C23: 25 | D23: 200 | E23: -2 | F23: 2 | G23: 24 | H23: 8.37082935 | I23: OK | K23: 2014-05-14
A24: 23 | B24: 19 | C24: 22 | D24: 200 | E24: -3 | F24: 3 | G24: 20.5 | H24: 7.912551801 | I24: OK | K24: 2014-05-21
A25: 24 | B25: 25 | C25: 30 | D25: 200 | E25: -5 | F25: 5 | G25: 27.5 | H25: 8.751679839 | I25: OK | K25: 2014-05-26
A26: 25 | B26: 4 | C26: 4 | D26: 200 | E26: 0 | F26: 0 | G26: 4 | H26: 3.840799917 | I26: OK | K26: 2014-05-27
A27: 26 | B27: 38 | C27: 33 | D27: 200 | E27: 5 | F27: 5 | G27: 35.5 | H27: 9.378861125 | I27: OK | K27: 2014-05-28
A28: 27 | B28: 21 | C28: 22 | D28: 200 | E28: -1 | F28: 1 | G28: 21.5 | H28: 8.052117982 | I28: OK | K28: 2014-06-03
A29: 28 | B29: 37 | C29: 45 | D29: 200 | E29: -8 | F29: 8 | G29: 41 | H29: 9.63993278 | I29: OK | K29: 2014-06-04
A30: 29 | B30: 34 | C30: 33 | D30: 200 | E30: 1 | F30: 1 | G30: 33.5 | H30: 9.251013134 | I30: OK | K30: 2014-06-10
A31: 30 | B31: 25 | C31: 24 | D31: 200 | E31: 1 | F31: 1 | G31: 24.5 | H31: 8.429709129 | I31: OK | K31: 2014-06-17
A32: 31 | B32: 42 | C32: 35 | D32: 200 | E32: 7 | F32: 7 | G32: 38.5 | H32: 9.537268162 | I32: OK | K32: 2014-06-18
A33: 32 | B33: 25 | C33: 21 | D33: 200 | E33: 4 | F33: 4 | G33: 23 | H33: 8.248317162 | I33: OK | K33: 2014-07-08
A34: 33 | B34: 24 | C34: 32 | D34: 200 | E34: -8 | F34: 8 | G34: 28 | H34: 8.800378174 | I34: OK | K34: 2014-07-16
A35: 34 | B35: 3 | C35: 2 | D35: 200 | E35: 1 | F35: 1 | G35: 2.5 | H35: 3.060049019 | I35: OK | K35: 2014-07-17
A36: 35 | B36: 34 | C36: 32 | D36: 200 | E36: 2 | F36: 2 | G36: 33 | H36: 9.216169269 | I36: OK | K36: 2014-07-22
A37: 36 | B37: 23 | C37: 28 | D37: 200 | E37: -5 | F37: 5 | G37: 25.5 | H37: 8.542879842 | I37: OK | K37: 2014-07-23
A38: 37 | B38: 21 | C38: 16 | D38: 200 | E38: 5 | F38: 5 | G38: 18.5 | H38: 7.6106323 | I38: OK | K38: 2014-07-28
A39: 38 | B39: 53 | C39: 53 | D39: 200 | E39: 0 | F39: 0 | G39: 53 | H39: 9.782344095 | I39: OK | K39: 2014-07-29
A40: 39 | B40: 21 | C40: 18 | D40: 200 | E40: 3 | F40: 3 | G40: 19.5 | H40: 7.765533852 | I40: OK | K40: 2014-07-30
A41: 40 | B41: 27 | C41: 33 | D41: 200 | E41: -6 | F41: 6 | G41: 30 | H41: 8.981848362 | I41: OK | K41: 2014-08-05
A42: 41 | B42: 11 | C42: 13 | D42: 200 | E42: -2 | F42: 2 | G42: 12 | H42: 6.369246109 | I42: OK | K42: 2014-08-06
A43: 42 | B43: 25 | C43: 26 | D43: 200 | E43: -1 | F43: 1 | G43: 25.5 | H43: 8.542879842 | I43: OK | K43: 2014-08-11
A44: 43 | B44: 57 | C44: 52 | D44: 200 | E44: 5 | F44: 5 | G44: 54.5 | H44: 9.760229301 | I44: OK | K44: 2014-09-01
A45: 44 | B45: 46 | C45: 40 | D45: 200 | E45: 6 | F45: 6 | G45: 43 | H45: 9.703484735 | I45: OK | K45: 2014-09-02
A46: 45 | B46: 16 | C46: 15 | D46: 200 | E46: 1 | F46: 1 | G46: 15.5 | H46: 7.093331798 | I46: OK | K46: 2014-09-09
A47: 46 | B47: 14 | C47: 19 | D47: 200 | E47: -5 | F47: 5 | G47: 16.5 | H47: 7.275138762 | I47: OK | K47: 2014-09-11
A48: 47 | B48: 33 | C48: 39 | D48: 200 | E48: -6 | F48: 6 | G48: 36 | H48: 9.408 | I48: OK | K48: 2014-09-15
A49: 48 | B49: 23 | C49: 26 | D49: 200 | E49: -3 | F49: 3 | G49: 24.5 | H49: 8.429709129 | I49: OK | K49: 2014-09-16
A50: 49 | B50: 32 | C50: 24 | D50: 200 | E50: 8 | F50: 8 | G50: 28 | H50: 8.800378174 | I50: OK | K50: 2014-09-17
A51: 50 | B51: 29 | C51: 29 | D51: 200 | E51: 0 | F51: 0 | G51: 29 | H51: 8.893736223 | I51: OK | K51: 2014-09-23
A52: 51 | B52: 53 | C52: 46 | D52: 200 | E52: =(B52-C52) -> 7 | F52: =ABS(C52-B52) -> 7 | G52: =AVERAGE(B52:C52) -> 49.5 | H52: =1.96*SQRT(2*G52*(100-G52)/D52) -> 9.799509988 | I52: =IF(OR(F52>H52),"!!!!!!","OK") -> OK | K52: 2014-09-29
A53: 52 | B53: 29 | C53: 23 | D53: 200 | E53: 6 | F53: 6 | G53: 26 | H53: 8.597231182 | I53: OK | K53: 2014-10-01
A54: 53 | B54: 29 | C54: 24 | D54: 200 | E54: 5 | F54: 5 | G54: 26.5 | H54: 8.650130866 | I54: OK | K54: 2014-10-08
A55: 54 | B55: 34 | C55: 28 | D55: 200 | E55: 6 | F55: 6 | G55: 31 | H55: 9.064867567 | I55: OK | K55: 2014-10-14
A56: 55 | B56: 48 | C56: 44 | D56: 200 | E56: 4 | F56: 4 | G56: 46 | H56: 9.768589663 | I56: OK | K56: 2014-10-20
A57: 56 | B57: 53 | C57: 46 | D57: 200 | E57: =(B57-C57) -> 7 | F57: =ABS(C57-B57) -> 7 | G57: =AVERAGE(B57:C57) -> 49.5 | H57: =1.96*SQRT(2*G57*(100-G57)/D57) -> 9.799509988 | I57: =IF(OR(F57>H57),"!!!!!!","OK") -> OK | K57: 2014-10-22
A58: 57 | B58: 8 | C58: 12 | D58: 200 | E58: -4 | F58: 4 | G58: 10 | H58: 5.88 | I58: OK | K58: 2014-11-03
A59: 58 | B59: 9 | C59: 7 | D59: 200 | E59: 2 | F59: 2 | G59: 8 | H59: 5.317346707 | I59: OK | K59: 2104-11-04
A60: 59 | B60: 20 | C60: 22 | D60: 200 | E60: -2 | F60: 2 | G60: 21 | H60: 7.983241447 | I60: OK | K60: 2014-11-05
A61: 60 | B61: 20 | C61: 23 | D61: 200 | E61: -3 | F61: 3 | G61: 21.5 | H61: 8.052117982 | I61: OK | K61: 2014-11-11
A62: 61 | B62: 36 | C62: 32 | D62: 200 | E62: 4 | F62: 4 | G62: 34 | H62: 9.284691917 | I62: OK | K62: 2014-11-18
A63: 62 | B63: 38 | C63: 31 | D63: 200 | E63: 7 | F63: 7 | G63: 34.5 | H63: 9.317218254 | I63: OK | K63: 2014-11-19
A64: 63 | B64: 15 | C64: 14 | D64: 200 | E64: 1 | F64: 1 | G64: 14.5 | H64: 6.901176421 | I64: OK | K64: 2014-12-09
A65: 64 | B65: 29 | C65: 22 | D65: 200 | E65: 7 | F65: 7 | G65: 25.5 | H65: 8.542879842 | I65: OK | K65: 2015-01-12
A66: 65 | B66: 63 | C66: 59 | D66: 200 | E66: 4 | F66: 4 | G66: 61 | H66: 9.559898744 | I66: OK | K66: 2015-01-13
A67: 66 | B67: 41 | C67: 45 | D67: 200 | E67: -4 | F67: 4 | G67: 43 | H67: 9.703484735 | I67: OK | K67: 2015-01-19
A68: 67 | B68: 30 | C68: 34 | D68: 200 | E68: -4 | F68: 4 | G68: 32 | H68: 9.142932571 | I68: OK | K68: 2015-02-02
A69: 68 | B69: 39 | C69: 47 | D69: 200 | E69: -8 | F69: 8 | G69: 43 | H69: 9.703484735 | I69: OK | K69: 2015-02-09
A70: 69 | B70: 30 | C70: 24 | D70: 200 | E70: 6 | F70: 6 | G70: 27 | H70: 8.701605369 | I70: OK | K70: 2015-02-10
A71: 70 | B71: 45 | C71: 40 | D71: 200 | E71: 5 | F71: 5 | G71: 42.5 | H71: 9.689122767 | I71: OK | K71: 2015-02-11
A72: 71 | B72: 37 | C72: 32 | D72: 200 | E72: 5 | F72: 5 | G72: 34.5 | H72: 9.317218254 | I72: OK | K72: 2015-02-18
A73: 72 | B73: 25 | C73: 30 | D73: 200 | E73: -5 | F73: 5 | G73: 27.5 | H73: 8.751679839 | I73: OK | K73: 2015-02-24
A74: 73 | B74: 31 | C74: 25 | D74: 200 | E74: 6 | F74: 6 | G74: 28 | H74: 8.800378174 | I74: OK | K74: 2015-03-03
A75: 74 | B75: 21 | C75: 21 | D75: 200 | E75: 0 | F75: 0 | G75: 21 | H75: 7.983241447 | I75: OK | K75: 2015-03-09
A76: 75 | B76: 50 | C76: 49 | D76: 200 | E76: 1 | F76: 1 | G76: 49.5 | H76: 9.799509988 | I76: OK | K76: 2015-03-11
A77: 76 | B77: 36 | C77: 27 | D77: 200 | E77: 9 | F77: 9 | G77: 31.5 | H77: 9.10451119 | I77: OK | K77: 2015-03-16
A78: 77 | B78: 21 | C78: 26 | D78: 200 | E78: -5 | F78: 5 | G78: 23.5 | H78: 8.310376887 | I78: OK | K78: 2015-03-18
A79: 78 | B79: 5 | C79: 6 | D79: 200 | E79: -1 | F79: 1 | G79: 5.5 | H79: 4.468413141 | I79: OK | K79: 2015-03-24
A80: 79 | B80: 33 | C80: 29 | D80: 200 | E80: 4 | F80: 4 | G80: 31 | H80: 9.064867567 | I80: OK | K80: 2015-03-30
A81: 80 | B81: 6 | C81: 10 | D81: 200 | E81: -4 | F81: 4 | G81: 8 | H81: 5.317346707 | I81: OK | K81: 2015-04-13
A82: 81 | B82: 36 | C82: 30 | D82: 200 | E82: 6 | F82: 6 | G82: 33 | H82: 9.216169269 | I82: OK | K82: 2015-04-20
A83: 82 | B83: 45 | C83: 44 | D83: 200 | E83: 1 | F83: 1 | G83: 44.5 | H83: 9.740529554 | I83: OK | K83: 2015-04-21
A84: 83 | B84: 55 | C84: 52 | D84: 200 | E84: 3 | F84: 3 | G84: 53.5 | H84: 9.775960515 | I84: OK | K84: 2015-04-22
A85: 84 | B85: 30 | C85: 27 | D85: 200 | E85: 3 | F85: 3 | G85: 28.5 | H85: 8.847723097 | I85: OK | K85: 2015-04-27
A86: 85 | B86: 48 | C86: 44 | D86: 200 | E86: 4 | F86: 4 | G86: 46 | H86: 9.768589663 | I86: OK | K86: 2015-04-28
A87: 86 | B87: 30 | C87: 25 | D87: 200 | E87: 5 | F87: 5 | G87: 27.5 | H87: 8.751679839 | I87: OK | K87: 2015-05-26
A88: 87 | B88: 30 | C88: 23 | D88: 200 | E88: 7 | F88: 7 | G88: 26.5 | H88: 8.650130866 | I88: OK | K88: 2015-06-22
A89: 88 | B89: 28 | C89: 27 | D89: 200 | E89: 1 | F89: 1 | G89: 27.5 | H89: 8.751679839 | I89: OK | K89: 2015-06-29
A90: 89 | B90: 13 | C90: 18 | D90: 200 | E90: -5 | F90: 5 | G90: 15.5 | H90: 7.093331798 | I90: OK | K90: 2015-07-13
A91: 90 | B91: 56 | C91: 54 | D91: 200 | E91: 2 | F91: 2 | G91: 55 | H91: 9.750876884 | I91: OK | K91: 2015-07-21
A92: 91 | B92: 29 | C92: 25 | D92: 200 | E92: 4 | F92: 4 | G92: 27 | H92: 8.701605369 | I92: OK | K92: 2015-07-22
A93: 92 | B93: 37 | C93: 31 | D93: 200 | E93: 6 | F93: 6 | G93: 34 | H93: 9.284691917 | I93: OK | K93: 2015-07-27
A94: 93 | B94: 0 | C94: 0 | D94: 0 | E94: 0 | F94: 0 | G94: 0 | K94: 2015-08-03
A95: 94 | B95: 16 | C95: 22 | D95: 200 | E95: -6 | F95: 6 | G95: 19 | H95: 7.689097736 | I95: OK | K95: 2015-08-04
A96: 95 | B96: 25 | C96: 21 | D96: 200 | E96: 4 | F96: 4 | G96: 23 | H96: 8.248317162 | I96: OK | K96: 2015-08-11
A97: 96 | B97: 24 | C97: 20 | D97: 200 | E97: 4 | F97: 4 | G97: 22 | H97: 8.119227549 | I97: OK | K97: 2015-08-12
A98: 97 | B98: 36 | C98: 31 | D98: 200 | E98: 5 | F98: 5 | G98: 33.5 | H98: 9.251013134 | I98: OK | K98: 2015-09-07
A99: 98 | B99: 8 | C99: 11 | D99: 200 | E99: -3 | F99: 3 | G99: 9.5 | H99: 5.747012789 | I99: OK | K99: 2015-09-15
A100: 99 | B100: 19 | C100: 18 | D100: 200 | E100: 1 | F100: 1 | G100: 18.5 | H100: 7.6106323 | I100: OK | K100: 2015-09-16
A101: 100 | B101: 20 | C101: 28 | D101: 200 | E101: -8 | F101: 8 | G101: 24 | H101: 8.37082935 | I101: OK | K101: 2015-09-21
A102: 101 | B102: 12 | C102: 17 | D102: 200 | E102: -5 | F102: 5 | G102: 14.5 | H102: 6.901176421 | I102: OK | K102: 2015-09-28
A103: 102 | B103: 19 | C103: 12 | D103: 200 | E103: 7 | F103: 7 | G103: 15.5 | H103: 7.093331798 | I103: OK | K103: 2015-10-05
A104: 103 | B104: 22 | C104: 18 | D104: 200 | E104: 4 | F104: 4 | G104: 20 | H104: 7.84 | I104: OK | K104: 2015-10-06
A105: 104 | B105: 14 | C105: 10 | D105: 200 | E105: 4 | F105: 4 | G105: 12 | H105: 6.369246109 | I105: OK | K105: 2015-10-12
A106: 105 | B106: 0 | C106: 0 | D106: 0 | E106: 0 | F106: 0 | G106: 0 | K106: 2015-10-13
A107: 106 | B107: 31 | C107: 33 | D107: 200 | E107: -2 | F107: 2 | G107: 32 | H107: 9.142932571 | I107: OK | K107: 2015-10-13
A108: 107 | B108: 3 | C108: 7 | D108: 200 | E108: -4 | F108: 4 | G108: 5 | H108: 4.271720965 | I108: OK | K108: 2015-10-14
A109: 108 | B109: 16 | C109: 20 | D109: 200 | E109: -4 | F109: 4 | G109: 18 | H109: 7.530074103 | I109: OK | K109: 2015-10-19
A110: 109 | B110: 16 | C110: 12 | D110: 200 | E110: 4 | F110: 4 | G110: 14 | H110: 6.800945817 | I110: OK | K110: 2015-10-20
A111: 110 | B111: 9 | C111: 9 | D111: 200 | E111: 0 | F111: 0 | G111: 9 | H111: 5.609162504 | I111: OK | K111: 2015-10-26
A112: 111 | B112: 10 | C112: 12 | D112: 200 | E112: -2 | F112: 2 | G112: 11 | H112: 6.132639236 | I112: OK | K112: 2015-10-27
A113: 112 | B113: 37 | C113: 32 | D113: 200 | E113: 5 | F113: 5 | G113: 34.5 | H113: 9.317218254 | I113: OK | K113: 2015-10-28
A114: 113 | E114: 0 | F114: 0
A115: 114
A116: 115
A117: 116
A118: 117
A119: 118
A120: 119
A121: 120
A122: 121
A123: 122
A124: 123
A125: 124
A126: 125
A127: 126
A128: 127
A129: 128
A130: 129
A131: 130
A132: 131
A133: 132
A134: 133
A135: 134
A136: 135 | E136: 0 | F136: 0
A137: 136 | E137: 0 | F137: 0
A138: 137 | E138: 0 | F138: 0
D141: n= | E141: =COUNT(B2:B138) -> 112
D142: MW diff= | E142: =SUM(E2:E138)/E141 -> 0.7946428571
D143: Median= | E143: =MEDIAN(E2:E138) -> 1
D144: s(diff)= | E144: =STDEV(E2:E138) -> 4.640760355
D145: Prüfgröße= | E145: =1.96*E144/SQRT(E141) -> 0.8594808455
D149: MW diff soll kleiner sein als die Prüfgröße

Sheet Vitalität
A1: Nr. | B1: Vit. N1 | C1: Vit. N2 | D1: Anzahl N der differen-zierten Zellen | E1: diff | F1: Betrag der diff | G1: MW | H1: 1.96x sqrt | I1: Frei-gabe | K1: Datum
A2: 1 | B2: 75 | C2: 80 | D2: 200 | E2: =B2-C2 -> -5 | F2: =ABS(C2-B2) -> 5 | G2: =AVERAGE(B2:C2) -> 77.5 | H2: =1.96*SQRT(2*G2*(100-G2)/D2) -> 8.184613613 | I2: =IF(OR(F2>H2),"!!!!!!","OK") -> OK | K2: 2014-01-15
A3: 2 | B3: 82 | C3: 81 | D3: 200 | E3: =B3-C3 -> 1 | F3: =ABS(C3-B3) -> 1 | G3: =AVERAGE(B3:C3) -> 81.5 | H3: 7.6106323 | I3: =IF(OR(F3>H3),"!!!!!!","OK") -> OK | K3: 2014-01-22
A4: 3 | B4: 85 | C4: 79 | D4: 200 | E4: 6 | F4: 6 | G4: =AVERAGE(B4:C4) -> 82 | H4: 7.530074103 | I4: OK | K4: 2014-02-18
A5: 4 | B5: 75 | C5: 71 | D5: 200 | E5: 4 | F5: 4 | G5: =AVERAGE(B5:C5) -> 73 | H5: 8.701605369 | I5: OK | K5: 2014-02-24
A6: 5 | B6: 83 | C6: 81 | D6: 200 | E6: 2 | F6: 2 | G6: =AVERAGE(B6:C6) -> 82 | H6: 7.530074103 | I6: OK | K6: 2014-02-25
A7: 6 | B7: 80 | C7: 84 | D7: 200 | E7: -4 | F7: 4 | G7: 82 | H7: 7.530074103 | I7: OK | K7: 2014-03-12
A8: 7 | B8: 75 | C8: 82 | D8: 200 | E8: -7 | F8: 7 | G8: 78.5 | H8: 8.052117982 | I8: OK | K8: 2014-03-18
A9: 8 | B9: 72 | C9: 68 | D9: 200 | E9: 4 | F9: 4 | G9: 70 | H9: 8.981848362 | I9: OK | K9: 2014-04-21
A10: 9 | B10: 77 | C10: 84 | D10: 200 | E10: -7 | F10: 7 | G10: 80.5 | H10: 7.765533852 | I10: OK | K10: 2014-05-13
A11: 10 | B11: 86 | C11: 87 | D11: 87 | E11: -1 | F11: 1 | G11: 86.5 | H11: 10.15515089 | I11: OK | K11: 2014-05-14
A12: 11 | B12: 79 | C12: 76 | D12: 200 | E12: 3 | F12: 3 | G12: 77.5 | H12: 8.184613613 | I12: OK | K12: 2014-05-20
A13: 12 | B13: 82 | C13: 83 | D13: 200 | E13: -1 | F13: 1 | G13: 82.5 | H13: 7.447355235 | I13: OK | K13: 2014-05-21
A14: 13 | B14: 88 | C14: 90 | D14: 200 | E14: -2 | F14: 2 | G14: 89 | H14: 6.132639236 | I14: OK | K14: 2014-05-26
A15: 14 | B15: 82 | C15: 76 | D15: 200 | E15: 6 | F15: 6 | G15: 79 | H15: 7.983241447 | I15: OK | K15: 2014-05-27
A16: 15 | B16: 17 | C16: 20 | D16: 200 | E16: -3 | F16: 3 | G16: 18.5 | H16: 7.6106323 | I16: OK | K16: 2014-05-28
A17: 16 | B17: 83 | C17: 81 | D17: 200 | E17: 2 | F17: 2 | G17: 82 | H17: 7.530074103 | I17: OK | K17: 2014-06-03
A18: 17 | B18: 81 | C18: 79 | D18: 200 | E18: 2 | F18: 2 | G18: 80 | H18: 7.84 | I18: OK | K18: 2014-06-04
A19: 18 | B19: 85 | C19: 87 | D19: 200 | E19: -2 | F19: 2 | G19: 86 | H19: 6.800945817 | I19: OK | K19: 2014-06-10
A20: 19 | B20: 85 | C20: 82 | D20: 200 | E20: 3 | F20: 3 | G20: 83.5 | H20: 7.275138762 | I20: OK | K20: 2014-06-18
A21: 20 | B21: 77 | C21: 76 | D21: 200 | E21: 1 | F21: 1 | G21: 76.5 | H21: 8.310376887 | I21: OK | K21: 2014-07-08
A22: 21 | B22: 73 | C22: 73 | D22: 200 | E22: 0 | F22: 0 | G22: 73 | H22: 8.701605369 | I22: OK | K22: 2014-07-16
A23: 22 | B23: 90 | C23: 87 | D23: 200 | E23: 3 | F23: 3 | G23: 88.5 | H23: 6.252830079 | I23: OK | K23: 2014-07-17
A24: 23 | B24: 80 | C24: 80 | D24: 200 | E24: 0 | F24: 0 | G24: 80 | H24: 7.84 | I24: OK | K24: 2014-07-23
A25: 24 | B25: 74 | C25: 79 | D25: 200 | E25: -5 | F25: 5 | G25: 76.5 | H25: 8.310376887 | I25: OK | K25: 2014-07-30
A26: 25 | B26: 78 | C26: 74 | D26: 200 | E26: 4 | F26: 4 | G26: 76 | H26: 8.37082935 | I26: OK | K26: 2014-08-05
A27: 26 | B27: 76 | C27: 69 | D27: 200 | E27: 7 | F27: 7 | G27: 72.5 | H27: 8.751679839 | I27: OK | K27: 2014-08-06
A28: 27 | B28: 80 | C28: 76 | D28: 200 | E28: 4 | F28: 4 | G28: 78 | H28: 8.119227549 | I28: OK | K28: 2014-08-11
A29: 28 | B29: 74 | C29: 75 | D29: 200 | E29: -1 | F29: 1 | G29: 74.5 | H29: 8.542879842 | I29: OK | K29: 2014-09-11
A30: 29 | B30: 86 | C30: 91 | D30: 200 | E30: -5 | F30: 5 | G30: 88.5 | H30: 6.252830079 | I30: OK | K30: 2014-09-15
A31: 30 | B31: 81 | C31: 81 | D31: 200 | E31: 0 | F31: 0 | G31: 81 | H31: 7.689097736 | I31: OK | K31: 2014-09-17
A32: 31 | B32: 80 | C32: 76 | D32: 200 | E32: 4 | F32: 4 | G32: 78 | H32: 8.119227549 | I32: OK | K32: 2014-10-01
A33: 32 | B33: 90 | C33: 88 | D33: 200 | E33: 2 | F33: 2 | G33: 89 | H33: 6.132639236 | I33: OK | K33: 2014-11-03
A34: 33 | B34: 90 | C34: 86 | D34: 200 | E34: 4 | F34: 4 | G34: 88 | H34: =1.96*SQRT(2*G34*(100-G34)/D34) -> 6.369246109 | I34: OK | K34: 2014-11-04
A35: 34 | B35: 84 | C35: 83 | D35: 200 | E35: 1 | F35: 1 | G35: 83.5 | H35: 7.275138762 | I35: OK | K35: 2014-10-08
A36: 35 | B36: 76 | C36: 70 | D36: 200 | E36: 6 | F36: 6 | G36: 73 | H36: 8.701605369 | I36: OK | K36: 2015-05-26
A37: 36 | B37: 70 | C37: 65 | D37: 200 | E37: 5 | F37: 5 | G37: 67.5 | H37: 9.180147058 | I37: OK | K37: 2015-07-13
A38: 37 | B38: 92 | C38: 94 | D38: 200 | E38: -2 | F38: 2 | G38: 93 | H38: 5.000881522 | I38: OK | K38: 2015-08-11
A39: 38 | B39: 85 | C39: 89 | D39: 200 | E39: -4 | F39: 4 | G39: 87 | H39: 6.591547315 | I39: OK | K39: 2015-10-05
A40: 39 | B40: 86 | C40: 88 | D40: 200 | E40: -2 | F40: 2 | G40: 87 | H40: 6.591547315 | I40: OK | K40: 2015-10-06
A41: 40 | B41: 93 | C41: 90 | D41: 200 | E41: 3 | F41: 3 | G41: 91.5 | H41: 5.466081229 | I41: OK | K41: 2015-10-12
A42: 41 | B42: 88 | C42: 84 | D42: 200 | E42: 4 | F42: 4 | G42: 86 | H42: 6.800945817 | I42: OK | K42: 2015-10-19
A43: 42 | B43: 80 | C43: 86 | D43: 200 | E43: -6 | F43: 6 | G43: 83 | H43: 7.362402869 | I43: OK | K43: 2015-10-26
A44: 43 | B44: 90 | C44: 91 | D44: 200 | E44: -1 | F44: 1 | G44: 90.5 | H44: 5.747012789 | I44: OK | K44: 2015-10-27
A45: 44
A46: 45
A47: 46
A48: 47
A49: 48
A50: 49
A51: 50
A52: 51
A53: 52
A54: 53
A55: 54
A56: 55
A57: 56
A58: 57
A59: 58
A60: 59
A61: 60
A62: 61
A63: 62
A64: 63
A65: 64
A66: 65
A67: 66
A68: 67
A69: 68
A70: 69
A71: 70
A72: 71 | D72: 200 | E72: 0 | F72: 0
A73: 72 | D73: 200 | E73: 0 | F73: 0
A74: 73 | D74: 200 | E74: 0 | F74: 0
A75: 74 | D75: 200 | E75: 0 | F75: 0
A76: 75 | D76: 200 | E76: 0 | F76: 0
A77: 76 | D77: 200 | E77: 0 | F77: 0
A78: 77 | D78: 200 | E78: 0 | F78: 0
A79: 78 | D79: 200 | E79: 0 | F79: 0
A80: 79 | D80: 200 | E80: 0 | F80: 0
A81: 80 | D81: 200 | E81: 0 | F81: 0
A82: 81 | D82: 200 | E82: 0 | F82: 0
A83: 82 | D83: 200 | E83: 0 | F83: 0
D86: n= | E86: =COUNT(B2:B85) -> 43
D87: MW diff= | E87: =AVERAGE(E2:E83) -> 0.4181818182
D88: Median= | E88: =MEDIAN(E2:E83) -> 0
D89: s(diff)= | E89: =STDEV(E2:E83) -> 3.359292855
D90: Prüfgröße= | E90: =1.96*E89/SQRT(E86) -> 1.004083221
B93: MW diff soll kleiner sein als die Prüfgröße

Sheet Motilität NP oder c
A1: Nr. | B1: Mot. c1 | C1: Mot. c2 | D1: Anzahl N der differen-zierten Zellen | E1: diff | F1: Betrag der diff | G1: MW | H1: 1.96x sqrt | I1: Frei-gabe | K1: Datum
A2: 1 | B2: 22 | C2: 26 | D2: 200 | E2: =B2-C2 -> -4 | F2: =ABS(C2-B2) -> 4 | G2: =AVERAGE(B2:C2) -> 24 | H2: =1.96*SQRT(2*G2*(100-G2)/D2) -> 8.37082935 | I2: =IF(OR(F2>H2),"!!!!!!","OK") -> OK | K2: 2014-01-15
A3: 2 | B3: 16 | C3: 23 | D3: 200 | E3: -7 | F3: =ABS(C3-B3) -> 7 | G3: =AVERAGE(B3:C3) -> 19.5 | H3: =1.96*SQRT(2*G3*(100-G3)/D3) -> 7.765533852 | I3: =IF(OR(F3>H3),"!!!!!!","OK") -> OK | K3: 2014-01-21
A4: 3 | B4: 23 | C4: 21 | D4: 200 | E4: 2 | F4: 2 | G4: =AVERAGE(B4:C4) -> 22 | H4: 8.119227549 | I4: OK | K4: 2014-01-22
A5: 4 | B5: 18 | C5: 26 | D5: 200 | E5: -8 | F5: 8 | G5: =AVERAGE(B5:C5) -> 22 | H5: 8.119227549 | I5: OK | K5: 2014-02-03
A6: 5 | B6: 33 | C6: 30 | D6: 200 | E6: 3 | F6: 3 | G6: =AVERAGE(B6:C6) -> 31.5 | H6: 9.10451119 | I6: OK | K6: 2014-02-11
A7: 6 | B7: 15 | C7: 16 | D7: 200 | E7: -1 | F7: 1 | G7: 15.5 | H7: 7.093331798 | I7: OK | K7: 2014-02-12
A8: 7 | B8: 19 | C8: 25 | D8: 200 | E8: -6 | F8: 6 | G8: 22 | H8: 8.119227549 | I8: OK | K8: 2014-02-17
A9: 8 | B9: 23 | C9: 17 | D9: 200 | E9: 6 | F9: 6 | G9: 20 | H9: 7.84 | I9: OK | K9: 2014-02-18
A10: 9 | B10: 7 | C10: 4 | D10: 200 | E10: 3 | F10: 3 | G10: 5.5 | H10: 4.468413141 | I10: OK | K10: 2014-02-24
A11: 10 | B11: 17 | C11: 23 | D11: 87 | E11: -6 | F11: 6 | G11: 20 | H11: 11.88697732 | I11: OK | K11: 2014-02-25
A12: 11 | B12: 24 | C12: 23 | D12: 200 | E12: 1 | F12: 1 | G12: 23.5 | H12: 8.310376887 | I12: OK | K12: 2014-03-05
A13: 12 | B13: 15 | C13: 11 | D13: 200 | E13: 4 | F13: 4 | G13: 13 | H13: 6.591547315 | I13: OK | K13: 2014-03-10
A14: 13 | B14: 13 | C14: 17 | D14: 200 | E14: -4 | F14: 4 | G14: 15 | H14: 6.99859986 | I14: OK | K14: 2014-03-12
A15: 14 | B15: 18 | C15: 15 | D15: 200 | E15: 3 | F15: 3 | G15: 16.5 | H15: 7.275138762 | I15: OK | K15: 2014-03-18
A16: 15 | B16: 11 | C16: 17 | D16: 200 | E16: -6 | F16: 6 | G16: 14 | H16: 6.800945817 | I16: OK | K16: 2014-03-19
A17: 16 | B17: 20 | C17: 14 | D17: 200 | E17: 6 | F17: 6 | G17: 17 | H17: 7.362402869 | I17: OK | K17: 2014-04-21
A18: 17 | B18: 15 | C18: 20 | D18: 200 | E18: -5 | F18: 5 | G18: 17.5 | H18: 7.447355235 | I18: OK | K18: 2014-05-07
A19: 18 | B19: 11 | C19: 17 | D19: 200 | E19: -6 | F19: 6 | G19: 14 | H19: 6.800945817 | I19: OK | K19: 2014-05-07
A20: 19 | B20: 17 | C20: 15 | D20: 200 | E20: 2 | F20: 2 | G20: 16 | H20: 7.18547869 | I20: OK | K20: 2014-05-06
A21: 20 | B21: 0 | C21: 0 | D21: 0 | E21: 0 | F21: 0 | G21: 0 | K21: 2014-05-07
A22: 21 | B22: 25 | C22: 18 | D22: 200 | E22: 7 | F22: 7 | G22: 21.5 | H22: 8.052117982 | I22: OK | K22: 2014-05-13
A23: 22 | B23: 15 | C23: 19 | D23: 200 | E23: -4 | F23: 4 | G23: 17 | H23: 7.362402869 | I23: OK | K23: 2014-05-14
A24: 23 | B24: 16 | C24: 16 | D24: 200 | E24: 0 | F24: 0 | G24: 16 | H24: 7.18547869 | I24: OK | K24: 2014-05-21
A25: 24 | B25: 17 | C25: 22 | D25: 200 | E25: -5 | F25: 5 | G25: 19.5 | H25: 7.765533852 | I25: OK | K25: 2014-05-26
A26: 25 | B26: 6 | C26: 10 | D26: 200 | E26: -4 | F26: 4 | G26: 8 | H26: 5.317346707 | I26: OK | K26: 2014-05-27
A27: 26 | B27: 17 | C27: 24 | D27: 200 | E27: -7 | F27: 7 | G27: 20.5 | H27: 7.912551801 | I27: OK | K27: 2014-05-28
A28: 27 | B28: 26 | C28: 23 | D28: 200 | E28: 3 | F28: 3 | G28: 24.5 | H28: 8.429709129 | I28: OK | K28: 2014-06-03
A29: 28 | B29: 12 | C29: 18 | D29: 200 | E29: -6 | F29: 6 | G29: 15 | H29: 6.99859986 | I29: OK | K29: 2014-06-04
A30: 29 | B30: 16 | C30: 20 | D30: 200 | E30: -4 | F30: 4 | G30: 18 | H30: 7.530074103 | I30: OK | K30: 2014-06-10
A31: 30 | B31: 14 | C31: 19 | D31: 200 | E31: -5 | F31: 5 | G31: 16.5 | H31: 7.275138762 | I31: OK | K31: 2014-06-17
A32: 31 | B32: 12 | C32: 10 | D32: 200 | E32: 2 | F32: 2 | G32: 11 | H32: 6.132639236 | I32: OK | K32: 2014-06-18
A33: 32 | B33: 12 | C33: 17 | D33: 200 | E33: -5 | F33: 5 | G33: 14.5 | H33: 6.901176421 | I33: OK | K33: 2014-07-08
A34: 33 | B34: 18 | C34: 14 | D34: 200 | E34: 4 | F34: 4 | G34: 16 | H34: 7.18547869 | I34: OK | K34: 2014-07-16
A35: 34 | B35: 9 | C35: 7 | D35: 200 | E35: 2 | F35: 2 | G35: 8 | H35: 5.317346707 | I35: OK | K35: 2014-07-17
A36: 35 | B36: 13 | C36: 16 | D36: 200 | E36: -3 | F36: 3 | G36: 14.5 | H36: 6.901176421 | I36: OK | K36: 2014-07-22
A37: 36 | B37: 14 | C37: 15 | D37: 200 | E37: -1 | F37: 1 | G37: 14.5 | H37: 6.901176421 | I37: OK | K37: 2014-07-23
A38: 37 | B38: 22 | C38: 18 | D38: 200 | E38: 4 | F38: 4 | G38: 20 | H38: 7.84 | I38: OK | K38: 2014-07-28
A39: 38 | B39: 15 | C39: 16 | D39: 200 | E39: -1 | F39: 1 | G39: 15.5 | H39: 7.093331798 | I39: OK | K39: 2014-07-29
A40: 39 | B40: 20 | C40: 23 | D40: 200 | E40: -3 | F40: 3 | G40: 21.5 | H40: 8.052117982 | I40: OK | K40: 2014-07-30
A41: 40 | B41: 13 | C41: 11 | D41: 200 | E41: 2 | F41: 2 | G41: 12 | H41: 6.369246109 | I41: OK | K41: 2014-08-05
A42: 41 | B42: 6 | C42: 11 | D42: 200 | E42: -5 | F42: 5 | G42: 8.5 | H42: 5.466081229 | I42: OK | K42: 2014-08-06
A43: 42 | B43: 12 | C43: 12 | D43: 200 | E43: 0 | F43: 0 | G43: 12 | H43: 6.369246109 | I43: OK | K43: 2014-08-11
A44: 43 | B44: 11 | C44: 9 | D44: 200 | E44: 2 | F44: 2 | G44: 10 | H44: 5.88 | I44: OK | K44: 2014-09-01
A45: 44 | B45: 8 | C45: 14 | D45: 200 | E45: -6 | F45: 6 | G45: 11 | H45: 6.132639236 | I45: OK | K45: 2014-09-02
A46: 45 | B46: 39 | C46: 40 | D46: 200 | E46: -1 | F46: 1 | G46: 39.5 | H46: 9.581473582 | I46: OK | K46: 2014-09-09
A47: 46 | B47: 8 | C47: 10 | D47: 200 | E47: -2 | F47: 2 | G47: 9 | H47: 5.609162504 | I47: OK | K47: 2014-09-11
A48: 47 | B48: 22 | C48: 24 | D48: 200 | E48: -2 | F48: 2 | G48: 23 | H48: 8.248317162 | I48: OK | K48: 2014-09-15
A49: 48 | B49: 47 | C49: 44 | D49: 200 | E49: 3 | F49: 3 | G49: 45.5 | H49: 9.760229301 | I49: OK | K49: 2014-09-16
A50: 49 | B50: 10 | C50: 8 | D50: 200 | E50: 2 | F50: 2 | G50: 9 | H50: 5.609162504 | I50: OK | K50: 2014-09-17
A51: 50 | B51: 23 | C51: 19 | D51: 200 | E51: 4 | F51: 4 | G51: 21 | H51: 7.983241447 | I51: OK | K51: 2014-09-23
A52: 51 | B52: 14 | C52: 21 | D52: 200 | E52: -7 | F52: 7 | G52: 17.5 | H52: 7.447355235 | I52: OK | K52: 2014-09-29
A53: 52 | B53: 18 | C53: 21 | D53: 200 | E53: -3 | F53: 3 | G53: 19.5 | H53: 7.765533852 | I53: OK | K53: 2014-10-01
A54: 53 | B54: 13 | C54: 19 | D54: 200 | E54: -6 | F54: 6 | G54: 16 | H54: 7.18547869 | I54: OK | K54: 2014-10-08
A55: 54 | B55: 20 | C55: 25 | D55: 200 | E55: -5 | F55: 5 | G55: 22.5 | H55: 8.184613613 | I55: OK | K55: 2014-10-14
A56: 55 | B56: 27 | C56: 29 | D56: 200 | E56: -2 | F56: 2 | G56: 28 | H56: 8.800378174 | I56: OK | K56: 2014-10-20
A57: 56 | B57: 15 | C57: 12 | D57: 200 | E57: 3 | F57: 3 | G57: 13.5 | H57: 6.697782021 | I57: OK | K57: 2014-10-22
A58: 57 | B58: 21 | C58: 20 | D58: 200 | E58: 1 | F58: 1 | G58: 20.5 | H58: 7.912551801 | I58: OK | K58: 2014-11-03
A59: 58 | B59: 19 | C59: 18 | D59: 200 | E59: 1 | F59: 1 | G59: 18.5 | H59: 7.6106323 | I59: OK | K59: 2014-11-04
A60: 59 | B60: 28 | C60: 20 | D60: 200 | E60: 8 | F60: 8 | G60: 24 | H60: 8.37082935 | I60: OK | K60: 2014-11-05
A61: 60 | B61: 18 | C61: 21 | D61: 200 | E61: -3 | F61: 3 | G61: 19.5 | H61: 7.765533852 | I61: OK | K61: 2014-11-11
A62: 61 | B62: 23 | C62: 31 | D62: 200 | E62: -8 | F62: 8 | G62: 27 | H62: 8.701605369 | I62: OK | K62: 2014-11-18
A63: 62 | B63: 12 | C63: 14 | D63: 200 | E63: -2 | F63: 2 | G63: 13 | H63: 6.591547315 | I63: OK | K63: 2014-11-19
A64: 63 | B64: 23 | C64: 16 | D64: 200 | E64: 7 | F64: 7 | G64: 19.5 | H64: 7.765533852 | I64: OK | K64: 2014-12-09
A65: 64 | B65: 20 | C65: 21 | D65: 200 | E65: -1 | F65: 1 | G65: 20.5 | H65: 7.912551801 | I65: OK | K65: 2015-01-12
A66: 65 | B66: 12 | C66: 12 | D66: 200 | E66: 0 | F66: 0 | G66: 12 | H66: 6.369246109 | I66: OK | K66: 2015-01-13
A67: 66 | B67: 27 | C67: 21 | D67: 200 | E67: 6 | F67: 6 | G67: 24 | H67: 8.37082935 | I67: OK | K67: 2015-01-19
A68: 67 | B68: 24 | C68: 30 | D68: 200 | E68: -6 | F68: 6 | G68: 27 | H68: 8.701605369 | I68: OK | K68: 2015-02-02
A69: 68 | B69: 14 | C69: 9 | D69: 200 | E69: 5 | F69: 5 | G69: 11.5 | H69: 6.252830079 | I69: OK | K69: 2015-02-09
A70: 69 | B70: 16 | C70: 23 | D70: 200 | E70: -7 | F70: 7 | G70: 19.5 | H70: 7.765533852 | I70: OK | K70: 2015-02-10
A71: 70 | B71: 10 | C71: 12 | D71: 200 | E71: -2 | F71: 2 | G71: 11 | H71: 6.132639236 | I71: OK | K71: 2015-02-11
A72: 71 | B72: 28 | C72: 25 | D72: 200 | E72: 3 | F72: 3 | G72: 26.5 | H72: 8.650130866 | I72: OK | K72: 2015-02-18
A73: 72 | B73: 23 | C73: 20 | D73: 200 | E73: 3 | F73: 3 | G73: 21.5 | H73: 8.052117982 | I73: OK | K73: 2015-02-24
A74: 73 | B74: 12 | C74: 10 | D74: 200 | E74: 2 | F74: 2 | G74: 11 | H74: 6.132639236 | I74: OK | K74: 2015-03-03
A75: 74 | B75: 19 | C75: 22 | D75: 200 | E75: -3 | F75: 3 | G75: 20.5 | H75: 7.912551801 | I75: OK | K75: 2015-03-09
A76: 75 | B76: 13 | C76: 13 | D76: 200 | E76: 0 | F76: 0 | G76: 13 | H76: 6.591547315 | I76: OK | K76: 2015-03-11
A77: 76 | B77: 17 | C77: 19 | D77: 200 | E77: -2 | F77: 2 | G77: 18 | H77: 7.530074103 | I77: OK | K77: 2015-03-16
A78: 77 | B78: 17 | C78: 22 | D78: 200 | E78: -5 | F78: 5 | G78: 19.5 | H78: 7.765533852 | I78: OK | K78: 2015-03-18
A79: 78 | B79: 13 | C79: 12 | D79: 200 | E79: 1 | F79: 1 | G79: 12.5 | H79: 6.482090712 | I79: OK | K79: 2015-03-24
A80: 79 | B80: 11 | C80: 15 | D80: 200 | E80: -4 | F80: 4 | G80: 13 | H80: 6.591547315 | I80: OK | K80: 2015-03-30
A81: 80 | B81: 10 | C81: 15 | D81: 200 | E81: -5 | F81: 5 | G81: 12.5 | H81: 6.482090712 | I81: OK | K81: 2015-04-13
A82: 81 | B82: 10 | C82: 16 | D82: 200 | E82: -6 | F82: 6 | G82: 13 | H82: 6.591547315 | I82: OK | K82: 2015-04-20
A83: 82 | B83: 20 | C83: 19 | D83: 200 | E83: 1 | F83: 1 | G83: 19.5 | H83: 7.765533852 | I83: OK | K83: 2015-04-21
A84: 83 | B84: 9 | C84: 14 | D84: 200 | E84: -5 | F84: 5 | G84: 11.5 | H84: 6.252830079 | I84: OK | K84: 2015-04-22
A85: 84 | B85: 18 | C85: 25 | D85: 200 | E85: -7 | F85: 7 | G85: 21.5 | H85: 8.052117982 | I85: OK | K85: 2015-04-27
A86: 85 | B86: 22 | C86: 25 | D86: 200 | E86: -3 | F86: 3 | G86: 23.5 | H86: 8.310376887 | I86: OK | K86: 2015-04-28
A87: 86 | B87: 12 | C87: 17 | D87: 200 | E87: -5 | F87: 5 | G87: 14.5 | H87: 6.901176421 | I87: OK | K87: 2015-05-26
A88: 87 | B88: 22 | C88: 26 | D88: 200 | E88: -4 | F88: 4 | G88: 24 | H88: 8.37082935 | I88: OK | K88: 2015-06-22
A89: 88 | B89: 19 | C89: 14 | D89: 200 | E89: 5 | F89: 5 | G89: 16.5 | H89: 7.275138762 | I89: OK | K89: 2015-06-29
A90: 89 | B90: 14 | C90: 18 | D90: 200 | E90: -4 | F90: 4 | G90: 16 | H90: 7.18547869 | I90: OK | K90: 2015-07-13
A91: 90 | B91: 11 | C91: 17 | D91: 200 | E91: -6 | F91: 6 | G91: 14 | H91: 6.800945817 | I91: OK | K91: 2015-07-21
A92: 91 | B92: 20 | C92: 23 | D92: 200 | E92: -3 | F92: 3 | G92: 21.5 | H92: 8.052117982 | I92: OK | K92: 2015-07-22
A93: 92 | B93: 18 | C93: 21 | D93: 200 | E93: -3 | F93: 3 | G93: 19.5 | H93: 7.765533852 | I93: OK | K93: 2015-07-27
A94: 93 | B94: 0 | C94: 0 | D94: 0 | E94: 0 | F94: 0 | G94: 0 | K94: 2015-08-03
A95: 94 | B95: 29 | C95: 26 | D95: 200 | E95: 3 | F95: 3 | G95: 27.5 | H95: 8.751679839 | I95: OK | K95: 2015-08-04
A96: 95 | B96: 17 | C96: 19 | D96: 200 | E96: -2 | F96: 2 | G96: 18 | H96: 7.530074103 | I96: OK | K96: 2015-08-11
A97: 96 | B97: 20 | C97: 16 | D97: 200 | E97: 4 | F97: 4 | G97: 18 | H97: 7.530074103 | I97: OK | K97: 2015-08-12
A98: 97 | B98: 10 | C98: 11 | D98: 200 | E98: -1 | F98: 1 | G98: 10.5 | H98: 6.008447054 | I98: OK | K98: 2015-09-07
A99: 98 | B99: 25 | C99: 32 | D99: 200 | E99: -7 | F99: 7 | G99: 28.5 | H99: 8.847723097 | I99: OK | K99: 2015-09-15
A100: 99 | B100: 30 | C100: 32 | D100: 200 | E100: -2 | F100: 2 | G100: 31 | H100: 9.064867567 | I100: OK | J100: 2015-09-16 | K100: 2015-09-16
A101: 100 | B101: 27 | C101: 22 | D101: 200 | E101: 5 | F101: 5 | G101: 24.5 | H101: 8.429709129 | I101: OK | K101: 2015-09-21
A102: 101 | B102: 27 | C102: 29 | D102: 200 | E102: -2 | F102: 2 | G102: 28 | H102: 8.800378174 | I102: OK | K102: 2015-09-28
A103: 102 | B103: 17 | C103: 18 | D103: 200 | E103: -1 | F103: 1 | G103: 17.5 | H103: 7.447355235 | I103: OK | K103: 2015-10-05
A104: 103 | B104: 11 | C104: 14 | D104: 200 | E104: -3 | F104: 3 | G104: 12.5 | H104: 6.482090712 | I104: OK | K104: 2015-10-06
A105: 104 | B105: 24 | C105: 23 | D105: 200 | E105: 1 | F105: 1 | G105: 23.5 | H105: 8.310376887 | I105: OK | K105: 2015-10-12
A106: 105 | B106: 0 | C106: 0 | D106: 0 | E106: 0 | F106: 0 | G106: 0 | K106: 2015-10-13
A107: 106 | B107: 34 | C107: 30 | D107: 200 | E107: 4 | F107: 4 | G107: 32 | H107: 9.142932571 | I107: OK | K107: 2015-10-13
A108: 107 | B108: 44 | C108: 40 | D108: 200 | E108: 4 | F108: 4 | G108: 42 | H108: 9.673746741 | I108: OK | K108: 2015-10-14
A109: 108 | B109: 18 | C109: 21 | D109: 200 | E109: -3 | F109: 3 | G109: 19.5 | H109: 7.765533852 | I109: OK | K109: 2015-10-19
A110: 109 | B110: 46 | C110: 44 | D110: 200 | E110: 2 | F110: 2 | G110: 45 | H110: 9.750876884 | I110: OK | K110: 2015-10-20
A111: 110 | B111: 26 | C111: 18 | D111: 200 | E111: 8 | F111: 8 | G111: 22 | H111: 8.119227549 | I111: OK | K111: 2015-10-26
A112: 111 | B112: 19 | C112: 24 | D112: 200 | E112: -5 | F112: 5 | G112: 21.5 | H112: 8.052117982 | I112: OK | K112: 2015-10-27
A113: 112 | B113: 26 | C113: 30 | D113: 200 | E113: -4 | F113: 4 | G113: 28 | H113: 8.800378174 | I113: OK | K113: 2015-10-28
A114: 113
A115: 114
A116: 115
A117: 116
A118: 117
A119: 118
A120: 119
A121: 120
A122: 121
A123: 122
A124: 123 | E124: 0 | F124: 0
A125: 124 | E125: 0 | F125: 0
A126: 125 | E126: 0 | F126: 0
D129: n= | E129: =COUNT(B2:B128) -> 112
D130: MW diff= | E130: =AVERAGE(E2:E126) -> -1.060869565
D131: Median= | E131: =MEDIAN(E2:E126) -> -1
D132: s(diff)= | E132: =STDEV(E2:E126) -> 4.026854932
D133: Prüfgröße= | E133: =1.96*E132/SQRT(E129) -> 0.74578397
B136: MW diff soll kleiner sein als die Prüfgröße

Sheet Motilität IM oder d
A1: Nr. | B1: Mot. d1 | C1: Mot. d2 | D1: Anzahl N der differen-zierten Zellen | E1: diff | F1: Betrag der diff | G1: MW | H1: 1.96x sqrt | I1: Frei-gabe | K1: Datum
A2: 1 | B2: 47 | C2: 46 | D2: 200 | E2: =B2-C2 -> 1 | F2: =ABS(C2-B2) -> 1 | G2: =AVERAGE(B2:C2) -> 46.5 | H2: =1.96*SQRT(2*G2*(100-G2)/D2) -> 9.775960515 | I2: =IF(OR(F2>H2),"!!!!!!","OK") -> OK | K2: 2014-01-15
A3: 2 | B3: 48 | C3: 42 | D3: 200 | E3: =B3-C3 -> 6 | F3: =ABS(C3-B3) -> 6 | G3: =AVERAGE(B3:C3) -> 45 | H3: =1.96*SQRT(2*G3*(100-G3)/D3) -> 9.750876884 | I3: =IF(OR(F3>H3),"!!!!!!","OK") -> OK | K3: 2014-01-21
A4: 3 | B4: 81 | C4: 80 | D4: 200 | E4: 1 | F4: 1 | G4: =AVERAGE(B4:C4) -> 80.5 | H4: 7.765533852 | I4: OK | K4: 2014-01-22
A5: 4 | B5: 23 | C5: 20 | D5: 200 | E5: 3 | F5: 3 | G5: =AVERAGE(B5:C5) -> 21.5 | H5: 8.052117982 | I5: OK | K5: 2014-02-03
A6: 5 | B6: 47 | C6: 51 | D6: 200 | E6: -4 | F6: 4 | G6: =AVERAGE(B6:C6) -> 49 | H6: 9.798039804 | I6: OK | K6: 2014-02-11
A7: 6 | B7: 65 | C7: 56 | D7: 200 | E7: 9 | F7: 9 | G7: 60.5 | H7: 9.581473582 | I7: OK | K7: 2014-02-12
A8: 7 | B8: 57 | C8: 59 | D8: 200 | E8: -2 | F8: 2 | G8: 58 | H8: 9.673746741 | I8: OK | K8: 2014-02-17
A9: 8 | B9: 46 | C9: 50 | D9: 200 | E9: -4 | F9: 4 | G9: 48 | H9: 9.792156861 | I9: OK | K9: 2014-02-18
A10: 9 | B10: 86 | C10: 84 | D10: 200 | E10: 2 | F10: 2 | G10: 85 | H10: 6.99859986 | I10: OK | K10: 2014-02-24
A11: 10 | B11: 60 | C11: 55 | D11: 200 | E11: 5 | F11: 5 | G11: 57.5 | H11: 9.689122767 | I11: OK | K11: 2014-02-25
A12: 11 | B12: 41 | C12: 35 | D12: 200 | E12: 6 | F12: 6 | G12: 38 | H12: 9.513574302 | I12: OK | K12: 2014-03-05
A13: 12 | B13: 49 | C13: 57 | D13: 200 | E13: -8 | F13: 8 | G13: 53 | H13: 9.782344095 | I13: OK | K13: 2014-03-10
A14: 13 | B14: 56 | C14: 62 | D14: 200 | E14: -6 | F14: 6 | G14: 59 | H14: 9.63993278 | I14: OK | K14: 2014-03-12
A15: 14 | B15: 52 | C15: 59 | D15: 200 | E15: -7 | F15: 7 | G15: 55.5 | H15: 9.740529554 | I15: OK | K15: 2014-03-18
A16: 15 | B16: 43 | C16: 34 | D16: 200 | E16: 9 | F16: 9 | G16: 38.5 | H16: 9.537268162 | I16: OK | K16: 2014-03-19
A17: 16 | B17: 73 | C17: 71 | D17: 200 | E17: 2 | F17: 2 | G17: 72 | H17: 8.800378174 | I17: OK | K17: 2014-04-21
A18: 17 | B18: 45 | C18: 40 | D18: 200 | E18: 5 | F18: 5 | G18: 42.5 | H18: 9.689122767 | I18: OK | K18: 2014-04-28
A19: 18 | B19: 56 | C19: 47 | D19: 200 | E19: 9 | F19: 9 | G19: 51.5 | H19: 9.795589007 | I19: OK | K19: 2014-04-30
A20: 19 | B20: 29 | C20: 38 | D20: 200 | E20: -9 | F20: 9 | G20: 33.5 | H20: 9.251013134 | I20: OK | K20: 2014-05-06
A21: 20 | B21: 0 | C21: 0 | D21: 0 | E21: 0 | F21: 0 | G21: 0 | K21: 2014-05-07
A22: 21 | B22: 45 | C22: 53 | D22: 200 | E22: -8 | F22: 8 | G22: 49 | H22: 9.798039804 | I22: OK | K22: 2014-05-13
A23: 22 | B23: 62 | C23: 58 | D23: 200 | E23: 4 | F23: 4 | G23: 60 | H23: 9.601999792 | I23: OK | K23: 2014-05-14
A24: 23 | B24: 65 | C24: 62 | D24: 200 | E24: 3 | F24: 3 | G24: 63.5 | H24: 9.436031157 | I24: OK | K24: 2014-05-21
A25: 24 | B25: 59 | C25: 51 | D25: 200 | E25: 8 | F25: 8 | G25: 55 | H25: 9.750876884 | I25: OK | K25: 2014-05-26
A26: 25 | B26: 80 | C26: 86 | D26: 200 | E26: -6 | F26: 6 | G26: 83 | H26: 7.362402869 | I26: OK | K26: 2014-05-27
A27: 26 | B27: 45 | C27: 43 | D27: 200 | E27: 2 | F27: 2 | G27: 44 | H27: 9.729184138 | I27: OK | K27: 2014-05-28
A28: 27 | B28: 54 | C28: 53 | D28: 200 | E28: 1 | F28: 1 | G28: 53.5 | H28: 9.775960515 | I28: OK | K28: 2014-06-03
A29: 28 | B29: 45 | C29: 37 | D29: 200 | E29: 8 | F29: 8 | G29: 41 | H29: 9.63993278 | I29: OK | K29: 2014-06-04
A30: 29 | B30: 51 | C30: 48 | D30: 200 | E30: 3 | F30: 3 | G30: 49.5 | H30: 9.799509988 | I30: OK | K30: 2014-06-10
A31: 30 | B31: 63 | C31: 57 | D31: 200 | E31: 6 | F31: 6 | G31: 60 | H31: 9.601999792 | I31: OK | K31: 2014-06-17
A32: 31 | B32: 46 | C32: 55 | D32: 200 | E32: -9 | F32: 9 | G32: 50.5 | H32: 9.799509988 | I32: OK | K32: 2014-06-18
A33: 32 | B33: 64 | C33: 60 | D33: 200 | E33: 4 | F33: 4 | G33: 62 | H33: 9.513574302 | I33: OK | K33: 2014-07-08
A34: 33 | B34: 60 | C34: 54 | D34: 200 | E34: 6 | F34: 6 | G34: 57 | H34: 9.703484735 | I34: OK | K34: 2014-07-16
A35: 34 | B35: 88 | C35: 91 | D35: 200 | E35: -3 | F35: 3 | G35: 89.5 | H35: 6.008447054 | I35: OK | K35: 2014-07-17
A36: 35 | B36: 53 | C36: 52 | D36: 200 | E36: 1 | F36: 1 | G36: 52.5 | H36: 9.787742334 | I36: OK | K36: 2014-07-22
A37: 36 | B37: 65 | C37: 57 | D37: 200 | E37: 8 | F37: 8 | G37: 61 | H37: 9.559898744 | I37: OK | K37: 2014-07-23
A38: 37 | B38: 57 | C38: 66 | D38: 200 | E38: -9 | F38: 9 | G38: 61.5 | H38: 9.537268162 | I38: OK | K38: 2014-07-28
A39: 38 | B39: 32 | C39: 31 | D39: 200 | E39: 1 | F39: 1 | G39: 31.5 | H39: 9.10451119 | I39: OK | K39: 2014-07-29
A40: 39 | B40: 59 | C40: 59 | D40: 200 | E40: 0 | F40: 0 | G40: 59 | H40: 9.63993278 | I40: OK | K40: 2014-07-30
A41: 40 | B41: 60 | C41: 51 | D41: 200 | E41: 9 | F41: 9 | G41: 55.5 | H41: 9.740529554 | I41: OK | K41: 2014-08-05
A42: 41 | B42: 83 | C42: 76 | D42: 200 | E42: 7 | F42: 7 | G42: 79.5 | H42: 7.912551801 | I42: OK | K42: 2014-08-06
A43: 42 | B43: 63 | C43: 62 | D43: 200 | E43: 1 | F43: 1 | G43: 62.5 | H43: 9.488809198 | I43: OK | K43: 2014-08-11
A44: 43 | B44: 32 | C44: 39 | D44: 200 | E44: -7 | F44: 7 | G44: 35.5 | H44: 9.378861125 | I44: OK | K44: 2014-09-01
A45: 44 | B45: 46 | C45: 44 | D45: 200 | E45: 2 | F45: 2 | G45: 45 | H45: 9.750876884 | I45: OK | K45: 2014-09-02
A46: 45 | B46: 45 | C46: 46 | D46: 200 | E46: -1 | F46: 1 | G46: 45.5 | H46: 9.760229301 | I46: OK | K46: 2014-09-09
A47: 46 | B47: 77 | C47: 80 | D47: 200 | E47: -3 | F47: 3 | G47: 78.5 | H47: 8.052117982 | I47: OK | K47: 2014-09-11
A48: 47 | B48: 45 | C48: 37 | D48: 200 | E48: 8 | F48: 8 | G48: 41 | H48: 9.63993278 | I48: OK | K48: 2014-09-15
A49: 48 | B49: 32 | C49: 31 | D49: 200 | E49: 1 | F49: 1 | G49: 31.5 | H49: 9.10451119 | I49: OK | K49: 2014-09-16
A50: 49 | B50: 58 | C50: 67 | D50: 200 | E50: -9 | F50: 9 | G50: 62.5 | H50: 9.488809198 | I50: OK | K50: 2014-09-17
A51: 50 | B51: 50 | C51: 53 | D51: 200 | E51: -3 | F51: 3 | G51: 51.5 | H51: 9.795589007 | I51: OK | K51: 2014-09-23
A52: 51 | B52: 31 | C52: 34 | D52: 200 | E52: -3 | F52: 3 | G52: 32.5 | H52: 9.180147058 | I52: OK | K52: 2014-09-29
A53: 52 | B53: 53 | C53: 56 | D53: 200 | E53: -3 | F53: 3 | G53: 54.5 | H53: 9.760229301 | I53: OK | K53: 2014-10-01
A54: 53 | B54: 58 | C54: 58 | D54: 200 | E54: 0 | F54: 0 | G54: 58 | H54: 9.673746741 | I54: OK | K54: 2014-10-08
A55: 54 | B55: 46 | C55: 47 | D55: 200 | E55: -1 | F55: 1 | G55: 46.5 | H55: 9.775960515 | I55: OK | K55: 2014-10-14
A56: 55 | B56: 25 | C56: 27 | D56: 200 | E56: -2 | F56: 2 | G56: 26 | H56: 8.597231182 | I56: OK | K56: 2014-10-20
A57: 56 | B57: 33 | C57: 42 | D57: 200 | E57: -9 | F57: 9 | G57: 37.5 | H57: 9.488809198 | I57: OK | K57: 2014-10-22
A58: 57 | B58: 71 | C58: 68 | D58: 200 | E58: 3 | F58: 3 | G58: 69.5 | H58: 9.023985594 | I58: OK | K58: 2014-11-03
A59: 58 | B59: 72 | C59: 75 | D59: 200 | E59: -3 | F59: 3 | G59: 73.5 | H59: 8.650130866 | I59: OK | K59: 2014-11-04
A60: 59 | B60: 52 | C60: 58 | D60: 200 | E60: -6 | F60: 6 | G60: 55 | H60: 9.750876884 | I60: OK | K60: 2014-11-05
A61: 60 | B61: 62 | C61: 56 | D61: 200 | E61: 6 | F61: 6 | G61: 59 | H61: 9.63993278 | I61: OK | K61: 2014-11-11
A62: 61 | B62: 41 | C62: 37 | D62: 200 | E62: 4 | F62: 4 | G62: 39 | H62: 9.559898744 | I62: OK | K62: 2014-11-18
A63: 62 | B63: 50 | C63: 55 | D63: 200 | E63: -5 | F63: 5 | G63: 52.5 | H63: 9.787742334 | I63: OK | K63: 2014-11-19
A64: 63 | B64: 62 | C64: 70 | D64: 200 | E64: -8 | F64: 8 | G64: 66 | H64: 9.284691917 | I64: OK | K64: 2014-12-09
A65: 64 | B65: 51 | C65: 57 | D65: 200 | E65: -6 | F65: 6 | G65: 54 | H65: 9.768589663 | I65: OK | K65: 2015-01-12
A66: 65 | B66: 25 | C66: 29 | D66: 200 | E66: -4 | F66: 4 | G66: 27 | H66: 8.701605369 | I66: OK | K66: 2015-01-13
A67: 66 | B67: 32 | C67: 34 | D67: 200 | E67: -2 | F67: 2 | G67: 33 | H67: 9.216169269 | I67: OK | K67: 2015-01-19
A68: 67 | B68: 46 | C68: 37 | D68: 200 | E68: 9 | F68: 9 | G68: 41.5 | H68: 9.657351811 | I68: OK | K68: 2015-02-02
A69: 68 | B69: 47 | C69: 44 | D69: 200 | E69: 3 | F69: 3 | G69: 45.5 | H69: 9.760229301 | I69: OK | K69: 2015-02-09
A70: 69 | B70: 53 | C70: 54 | D70: 200 | E70: -1 | F70: 1 | G70: 53.5 | H70: 9.775960515 | I70: OK | K70: 2015-02-10
A71: 70 | B71: 43 | C71: 50 | D71: 200 | E71: -7 | F71: 7 | G71: 46.5 | H71: 9.775960515 | I71: OK | K71: 2015-02-11
A72: 71 | B72: 35 | C72: 43 | D72: 200 | E72: -8 | F72: 8 | G72: 39 | H72: 9.559898744 | I72: OK | K72: 2015-02-18
A73: 72 | B73: 52 | C73: 50 | D73: 200 | E73: 2 | F73: 2 | G73: 51 | H73: 9.798039804 | I73: OK | K73: 2015-02-24
A74: 73 | B74: 57 | C74: 65 | D74: 200 | E74: -8 | F74: 8 | G74: 61 | H74: 9.559898744 | I74: OK | K74: 2015-03-03
A75: 74 | B75: 60 | C75: 57 | D75: 200 | E75: 3 | F75: 3 | G75: 58.5 | H75: 9.657351811 | I75: OK | K75: 2015-03-09
A76: 75 | B76: 37 | C76: 38 | D76: 200 | E76: -1 | F76: 1 | G76: 37.5 | H76: 9.488809198 | I76: OK | K76: 2015-03-11
A77: 76 | B77: 47 | C77: 54 | D77: 200 | E77: -7 | F77: 7 | G77: 50.5 | H77: 9.799509988 | I77: OK | K77: 2015-03-16
A78: 77 | B78: 62 | C78: 53 | D78: 200 | E78: 9 | F78: 9 | G78: 57.5 | H78: 9.689122767 | I78: OK | K78: 2015-03-18
A79: 78 | B79: 51 | C79: 51 | D79: 200 | E79: 0 | F79: 0 | G79: 51 | H79: 9.798039804 | I79: OK | K79: 2015-03-24
A80: 79 | B80: 55 | C80: 55 | D80: 200 | E80: 0 | F80: 0 | G80: 55 | H80: 9.750876884 | I80: OK | K80: 2015-03-30
A81: 80 | B81: 84 | C81: 77 | D81: 200 | E81: 7 | F81: 7 | G81: 80.5 | H81: 7.765533852 | I81: OK | K81: 2015-04-13
A82: 81 | B82: 57 | C82: 54 | D82: 200 | E82: 3 | F82: 3 | G82: 55.5 | H82: 9.740529554 | I82: OK | K82: 2015-04-20
A83: 82 | B83: 35 | C83: 37 | D83: 200 | E83: -2 | F83: 2 | G83: 36 | H83: 9.408 | I83: OK | K83: 2015-04-21
A84: 83 | B84: 33 | C84: 37 | D84: 200 | E84: -4 | F84: 4 | G84: 35 | H84: 9.348604174 | I84: OK | K84: 2015-04-22
A85: 84 | B85: 46 | C85: 49 | D85: 200 | E85: -3 | F85: 3 | G85: 47.5 | H85: 9.787742334 | I85: OK | K85: 2015-04-27
A86: 85 | B86: 30 | C86: 31 | D86: 200 | E86: -1 | F86: 1 | G86: 30.5 | H86: 9.023985594 | I86: OK | K86: 2015-04-28
A87: 86 | B87: 58 | C87: 58 | D87: 200 | E87: 0 | F87: 0 | G87: 58 | H87: 9.673746741 | I87: OK | K87: 2015-05-26
A88: 87 | B88: 48 | C88: 51 | D88: 200 | E88: -3 | F88: 3 | G88: 49.5 | H88: 9.799509988 | I88: OK | K88: 2015-06-22
A89: 88 | B89: 54 | C89: 59 | D89: 200 | E89: -5 | F89: 5 | G89: 56.5 | H89: 9.71683714 | I89: OK | K89: 2015-06-29
A90: 89 | B90: 73 | C90: 64 | D90: 200 | E90: 9 | F90: 9 | G90: 68.5 | H90: 9.10451119 | I90: OK | K90: 2015-07-13
A91: 90 | B91: 33 | C91: 36 | D91: 200 | E91: -3 | F91: 3 | G91: 34.5 | H91: 9.317218254 | I91: OK | K91: 2015-07-21
A92: 91 | B92: 51 | C92: 52 | D92: 200 | E92: -1 | F92: 1 | G92: 51.5 | H92: 9.795589007 | I92: OK | K92: 2015-07-22
A93: 92 | B93: 44 | C93: 49 | D93: 200 | E93: -5 | F93: 5 | G93: 46.5 | H93: 9.775960515 | I93: OK | K93: 2015-07-27
A94: 93 | B94: 0 | C94: 0 | D94: 0 | E94: 0 | F94: 0 | G94: 0 | K94: 2015-08-03
A95: 94 | B95: 54 | C95: 54 | D95: 200 | E95: 0 | F95: 0 | G95: 54 | H95: 9.768589663 | I95: OK | K95: 2015-08-04
A96: 95 | B96: 57 | C96: 60 | D96: 200 | E96: -3 | F96: 3 | G96: 58.5 | H96: 9.657351811 | I96: OK | K96: 2015-08-11
A97: 96 | B97: 56 | C97: 64 | D97: 200 | E97: -8 | F97: 8 | G97: 60 | H97: 9.601999792 | I97: OK | K97: 2015-08-12
A98: 97 | B98: 57 | C98: 64 | D98: 200 | E98: -7 | F98: 7 | G98: 60.5 | H98: 9.581473582 | I98: OK | K98: 2015-09-07
A99: 98 | B99: 65 | C99: 58 | D99: 200 | E99: 7 | F99: 7 | G99: 61.5 | H99: 9.537268162 | I99: OK | K99: 2015-09-15
A100: 99 | B100: 52 | C100: 52 | D100: 200 | E100: 0 | F100: 0 | G100: 52 | H100: 9.792156861 | I100: OK | K100: 2015-09-16
A101: 100 | B101: 54 | C101: 50 | D101: 200 | E101: 4 | F101: 4 | G101: 52 | H101: 9.792156861 | I101: OK | K101: 2015-09-21
A102: 101 | B102: 62 | C102: 59 | D102: 200 | E102: 3 | F102: 3 | G102: 60.5 | H102: 9.581473582 | I102: OK | K102: 2015-09-28
A103: 102 | B103: 65 | C103: 70 | D103: 200 | E103: -5 | F103: 5 | G103: 67.5 | H103: 9.180147058 | I103: OK | K103: 2015-10-05
A104: 103 | B104: 70 | C104: 70 | D104: 200 | E104: 0 | F104: 0 | G104: 70 | H104: 8.981848362 | I104: OK | K104: 2015-10-06
A105: 104 | B105: 64 | C105: 68 | D105: 200 | E105: -4 | F105: 4 | G105: 66 | H105: 9.284691917 | I105: OK | K105: 2015-10-12
A106: 105 | B106: 0 | C106: 0 | D106: 0 | E106: 0 | F106: 0 | G106: 0 | K106: 2015-10-13
A107: 106 | B107: 35 | C107: 37 | D107: 200 | E107: -2 | F107: 2 | G107: 36 | H107: 9.408 | I107: OK | K107: 2015-10-13
A108: 107 | B108: 54 | C108: 53 | D108: 200 | E108: 1 | F108: 1 | G108: 53.5 | H108: 9.775960515 | I108: OK | K108: 2015-10-14
A109: 108 | B109: 67 | C109: 59 | D109: 200 | E109: 8 | F109: 8 | G109: 63 | H109: 9.46296444 | I109: OK | K109: 2015-10-19
A110: 109 | B110: 38 | C110: 44 | D110: 200 | E110: -6 | F110: 6 | G110: 41 | H110: 9.63993278 | I110: OK | K110: 2015-10-20
A111: 110 | B111: 65 | C111: 73 | D111: 200 | E111: -8 | F111: 8 | G111: 69 | H111: 9.064867567 | I111: OK | K111: 2015-10-26
A112: 111 | B112: 71 | C112: 64 | D112: 200 | E112: 7 | F112: 7 | G112: 67.5 | H112: 9.180147058 | I112: OK | K112: 2015-10-27
A113: 112 | B113: 37 | C113: 38 | D113: 200 | E113: -1 | F113: 1 | G113: 37.5 | H113: 9.488809198 | I113: OK | K113: 2015-10-28
A114: 113
A115: 114
A116: 115
A117: 116
A118: 117
A119: 118
A120: 119
A121: 120
A122: 121
A123: 122
A124: 123
A125: 124 | E125: 0 | F125: 0
A126: 125 | E126: 0 | F126: 0
A127: 126 | E127: 0 | F127: 0
A128: 127 | E128: 0 | F128: 0
D131: n= | E131: =COUNT(B2:B130) -> 112
D132: MW diff= | E132: =AVERAGE(E2:E128) -> -0.2068965517
D133: Median= | E133: =MEDIAN(E2:E128) -> 0
D134: s(diff)= | E134: =STDEV(E2:E128) -> 5.147421881
D135: Prüfgröße= | E135: =1.96*E134/SQRT(E131) -> 0.9533158734
B139: MW diff soll kleiner sein als die Prüfgröße

Sheet Morphologie Normalformen
A1: Nr. | B1: Morph N1 | C1: Morph N2 | D1: Anzahl N der differen-zierten Zellen | E1: diff | F1: Betrag der diff | G1: MW | H1: 1.96x sqrt | I1: Frei-gabe | K1: Datum
A2: 1 | B2: 20 | C2: 24 | D2: 200 | E2: =B2-C2 -> -4 | F2: =ABS(C2-B2) -> 4 | G2: =AVERAGE(B2:C2) -> 22 | H2: =1.96*SQRT(2*G2*(100-G2)/D2) -> 8.119227549 | I2: =IF(OR(F2>H2),"!!!!!!","OK") -> OK | K2: 2014-01-15
A3: 2 | B3: 16 | C3: 18 | D3: 200 | E3: =B3-C3 -> -2 | F3: =ABS(C3-B3) -> 2 | G3: =AVERAGE(B3:C3) -> 17 | H3: =1.96*SQRT(2*G3*(100-G3)/D3) -> 7.362402869 | I3: =IF(OR(F3>H3),"!!!!!!","OK") -> OK | K3: 2014-01-20
A4: 3 | B4: 8 | C4: 4 | D4: 200 | E4: 4 | F4: 4 | G4: =AVERAGE(B4:C4) -> 6 | H4: 4.654742098 | I4: OK | K4: 2014-01-21
A5: 4 | B5: 4 | C5: 4 | D5: 200 | E5: 0 | F5: 0 | G5: =AVERAGE(B5:C5) -> 4 | H5: 3.840799917 | I5: OK | K5: 2014-01-22
A6: 5 | B6: 18 | C6: 18 | D6: 200 | E6: 0 | F6: 0 | G6: =AVERAGE(B6:C6) -> 18 | H6: 7.530074103 | I6: OK | K6: 2014-02-03
A7: 6 | B7: 17 | C7: 14 | D7: 200 | E7: 3 | F7: 3 | G7: 15.5 | H7: 7.093331798 | I7: OK | K7: 2014-02-11
A8: 7 | B8: 20 | C8: 18 | D8: 200 | E8: 2 | F8: 2 | G8: 19 | H8: 7.689097736 | I8: OK | K8: 2014-02-12
A9: 8 | B9: 19 | C9: 21 | D9: 200 | E9: -2 | F9: 2 | G9: 20 | H9: 7.84 | I9: OK | K9: 2014-02-17
A10: 9 | B10: 8 | C10: 11 | D10: 200 | E10: -3 | F10: 3 | G10: 9.5 | H10: 5.747012789 | I10: OK | K10: 2014-02-18
A11: 10 | B11: 10 | C11: 10 | D11: 200 | E11: 0 | F11: 0 | G11: 10 | H11: 5.88 | I11: OK | K11: 2014-02-24
A12: 11 | B12: 18 | C12: 21 | D12: 200 | E12: -3 | F12: 3 | G12: 19.5 | H12: 7.765533852 | I12: OK | K12: 2014-02-25
A13: 12 | B13: 14 | C13: 10 | D13: 200 | E13: 4 | F13: 4 | G13: 12 | H13: 6.369246109 | I13: OK | K13: 2014-03-05
A14: 13 | B14: 22 | C14: 27 | D14: 200 | E14: -5 | F14: 5 | G14: 24.5 | H14: 8.429709129 | I14: OK | K14: 2014-03-10
A15: 14 | B15: 7 | C15: 4 | D15: 200 | E15: 3 | F15: 3 | G15: 5.5 | H15: 4.468413141 | I15: OK | K15: 2014-03-12
A16: 15 | B16: 25 | C16: 18 | D16: 200 | E16: 7 | F16: 7 | G16: 21.5 | H16: 8.052117982 | I16: OK | K16: 2014-03-18
A17: 16 | B17: 29 | C17: 26 | D17: 200 | E17: 3 | F17: 3 | G17: 27.5 | H17: 8.751679839 | I17: OK | K17: 2014-03-19
A18: 17 | B18: 19 | C18: 23 | D18: 200 | E18: -4 | F18: 4 | G18: 21 | H18: 7.983241447 | I18: OK | K18: 2014-04-30
A19: 18 | B19: 19 | C19: 23 | D19: 200 | E19: -4 | F19: 4 | G19: 21 | H19: 7.983241447 | I19: OK | K19: 2014-04-30
A20: 19 | B20: 22 | C20: 24 | D20: 200 | E20: -2 | F20: 2 | G20: 23 | H20: 8.248317162 | I20: OK | K20: 2014-05-06
A21: 20 | B21: 0 | C21: 0 | D21: 0 | E21: 0 | F21: 0 | G21: 0 | K21: 2014-05-07
A22: 21 | B22: 4 | C22: 7 | D22: 200 | E22: -3 | F22: 3 | G22: 5.5 | H22: 4.468413141 | I22: OK | K22: 2014-05-13
A23: 22 | B23: 21 | C23: 23 | D23: 200 | E23: -2 | F23: 2 | G23: 22 | H23: 8.119227549 | I23: OK | K23: 2014-05-14
A24: 23 | B24: 17 | C24: 15 | D24: 200 | E24: 2 | F24: 2 | G24: 16 | H24: 7.18547869 | I24: OK | K24: 2014-05-20
A25: 24 | B25: 6 | C25: 5 | D25: 200 | E25: 1 | F25: 1 | G25: 5.5 | H25: 4.468413141 | I25: OK | K25: 2014-05-21
A26: 25 | B26: 4 | C26: 8 | D26: 200 | E26: -4 | F26: 4 | G26: 6 | H26: 4.654742098 | I26: OK | K26: 2014-05-26
A27: 26 | B27: 16 | C27: 23 | D27: 200 | E27: -7 | F27: 7 | G27: 19.5 | H27: 7.765533852 | I27: OK | K27: 2014-05-27
A28: 27 | B28: 17 | C28: 20 | D28: 200 | E28: -3 | F28: 3 | G28: 18.5 | H28: 7.6106323 | I28: OK | K28: 2014-05-28
A29: 28 | B29: 22 | C29: 28 | D29: 200 | E29: -6 | F29: 6 | G29: 25 | H29: 8.487048957 | I29: OK | K29: 2014-06-03
A30: 29 | B30: 29 | C30: 35 | D30: 200 | E30: -6 | F30: 6 | G30: 32 | H30: 9.142932571 | I30: OK | K30: 2014-06-04
A31: 30 | B31: 22 | C31: 26 | D31: 200 | E31: -4 | F31: 4 | G31: 24 | H31: 8.37082935 | I31: OK | K31: 2014-06-10
A32: 31 | B32: 4 | C32: 7 | D32: 200 | E32: -3 | F32: 3 | G32: 5.5 | H32: 4.468413141 | I32: OK | K32: 2014-06-17
A33: 32 | B33: 15 | C33: 20 | D33: 200 | E33: -5 | F33: 5 | G33: 17.5 | H33: 7.447355235 | I33: OK | K33: 2014-06-18
A34: 33 | B34: 9 | C34: 15 | D34: 200 | E34: -6 | F34: 6 | G34: 12 | H34: 6.369246109 | I34: OK | K34: 2014-07-08
A35: 34 | B35: 11 | C35: 8 | D35: 200 | E35: 3 | F35: 3 | G35: 9.5 | H35: 5.747012789 | I35: OK | K35: 2014-07-16
A36: 35 | B36: 18 | C36: 15 | D36: 200 | E36: 3 | F36: 3 | G36: 16.5 | H36: 7.275138762 | I36: OK | K36: 2014-07-17
A37: 36 | B37: 5 | C37: 5 | D37: 200 | E37: 0 | F37: 0 | G37: 5 | H37: 4.271720965 | I37: OK | K37: 2014-07-22
A38: 37 | B38: 7 | C38: 11 | D38: 200 | E38: -4 | F38: 4 | G38: 9 | H38: 5.609162504 | I38: OK | K38: 2014-07-23
A39: 38 | B39: 22 | C39: 26 | D39: 200 | E39: -4 | F39: 4 | G39: 24 | H39: 8.37082935 | I39: OK | K39: 2014-07-28
A40: 39 | B40: 20 | C40: 26 | D40: 200 | E40: -6 | F40: 6 | G40: 23 | H40: 8.248317162 | I40: OK | K40: 2014-07-30
A41: 40 | B41: 8 | C41: 13 | D41: 200 | E41: -5 | F41: 5 | G41: 10.5 | H41: 6.008447054 | I41: OK | K41: 2014-08-05
A42: 41 | B42: 2 | C42: 4 | D42: 200 | E42: -2 | F42: 2 | G42: 3 | H42: 3.343509533 | I42: OK | K42: 2014-08-06
A43: 42 | B43: 4 | C43: 3 | D43: 200 | E43: 1 | F43: 1 | G43: 3.5 | H43: 3.602083286 | I43: OK | K43: 2014-08-11
A44: 43 | B44: 20 | C44: 17 | D44: 200 | E44: 3 | F44: 3 | G44: 18.5 | H44: 7.6106323 | I44: OK | K44: 2014-09-01
A45: 44 | B45: 28 | C45: 33 | D45: 200 | E45: -5 | F45: 5 | G45: 30.5 | H45: 9.023985594 | I45: OK | K45: 2014-09-02
A46: 45 | B46: 27 | C46: 23 | D46: 200 | E46: 4 | F46: 4 | G46: 25 | H46: 8.487048957 | I46: OK | K46: 2014-09-09
A47: 46 | B47: 20 | C47: 25 | D47: 200 | E47: -5 | F47: 5 | G47: 22.5 | H47: 8.184613613 | I47: OK | K47: 2014-09-11
A48: 47 | B48: 10 | C48: 8 | D48: 200 | E48: 2 | F48: 2 | G48: 9 | H48: 5.609162504 | I48: OK | K48: 2014-09-15
A49: 48 | B49: 10 | C49: 8 | D49: 200 | E49: 2 | F49: 2 | G49: 9 | H49: 5.609162504 | I49: OK | K49: 2014-09-16
A50: 49 | B50: 17 | C50: 17 | D50: 200 | E50: 0 | F50: 0 | G50: 17 | H50: 7.362402869 | I50: OK | K50: 2014-09-17
A51: 50 | B51: 9 | C51: 12 | D51: 200 | E51: -3 | F51: 3 | G51: 10.5 | H51: 6.008447054 | I51: OK | K51: 2014-09-23
A52: 51 | B52: 13 | C52: 8 | D52: 200 | E52: 5 | F52: 5 | G52: 10.5 | H52: 6.008447054 | I52: OK | K52: 2014-09-29
A53: 52 | B53: 7 | C53: 9 | D53: 200 | E53: -2 | F53: 2 | G53: 8 | H53: 5.317346707 | I53: OK | K53: 2014-10-01
A54: 53 | B54: 8 | C54: 11 | D54: 200 | E54: -3 | F54: 3 | G54: 9.5 | H54: 5.747012789 | I54: OK | K54: 2014-10-08
A55: 54 | B55: 9 | C55: 7 | D55: 200 | E55: 2 | F55: 2 | G55: 8 | H55: 5.317346707 | I55: OK | K55: 2014-10-14
A56: 55 | B56: 21 | C56: 25 | D56: 200 | E56: -4 | F56: 4 | G56: 23 | H56: 8.248317162 | I56: OK | K56: 2014-10-20
A57: 56 | B57: 21 | C57: 26 | D57: 200 | E57: -5 | F57: 5 | G57: 23.5 | H57: 8.310376887 | I57: OK | K57: 2014-10-22
A58: 57 | B58: 4 | C58: 2 | D58: 200 | E58: 2 | F58: 2 | G58: 3 | H58: 3.343509533 | I58: OK | K58: 2014-11-03
A59: 58 | B59: 5 | C59: 10 | D59: 200 | E59: -5 | F59: 5 | G59: 7.5 | H59: 5.162470339 | I59: OK | K59: 2014-11-04
A60: 59 | B60: 11 | C60: 8 | D60: 200 | E60: 3 | F60: 3 | G60: 9.5 | H60: 5.747012789 | I60: OK | K60: 2014-11-05
A61: 60 | B61: 12 | C61: 8 | D61: 200 | E61: 4 | F61: 4 | G61: 10 | H61: 5.88 | I61: OK | K61: 2014-11-18
A62: 61 | B62: 17 | C62: 15 | D62: 200 | E62: 2 | F62: 2 | G62: 16 | H62: 7.18547869 | I62: OK | K62: 2014-11-19
A63: 62 | B63: 8 | C63: 13 | D63: 200 | E63: -5 | F63: 5 | G63: 10.5 | H63: 6.008447054 | I63: OK | K63: 2014-11-11
A64: 63 | B64: 15 | C64: 21 | D64: 200 | E64: -6 | F64: 6 | G64: 18 | H64: 7.530074103 | I64: OK | K64: 2014-12-09
A65: 64 | B65: 4 | C65: 8 | D65: 200 | E65: -4 | F65: 4 | G65: 6 | H65: 4.654742098 | I65: OK | K65: 2015-01-12
A66: 65 | B66: 22 | C66: 29 | D66: 200 | E66: -7 | F66: 7 | G66: 25.5 | H66: 8.542879842 | I66: OK | K66: 2015-01-13
A67: 66 | B67: 14 | C67: 18 | D67: 200 | E67: -4 | F67: 4 | G67: 16 | H67: 7.18547869 | I67: OK | K67: 2015-01-19
A68: 67 | B68: 3 | C68: 2 | D68: 200 | E68: 1 | F68: 1 | G68: 2.5 | H68: 3.060049019 | I68: OK | K68: 2015-02-02
A69: 68 | B69: 7 | C69: 12 | D69: 200 | E69: -5 | F69: 5 | G69: 9.5 | H69: 5.747012789 | I69: OK | K69: 2015-02-09
A70: 69 | B70: 8 | C70: 12 | D70: 200 | E70: -4 | F70: 4 | G70: 10 | H70: 5.88 | I70: OK | K70: 2015-02-10
A71: 70 | B71: 23 | C71: 19 | D71: 200 | E71: 4 | F71: 4 | G71: 21 | H71: 7.983241447 | I71: OK | K71: 2015-02-11
A72: 71 | B72: 28 | C72: 34 | D72: 200 | E72: -6 | F72: 6 | G72: 31 | H72: 9.064867567 | I72: OK | K72: 2015-02-18
A73: 72 | B73: 21 | C73: 25 | D73: 200 | E73: -4 | F73: 4 | G73: 23 | H73: 8.248317162 | I73: OK | K73: 2015-02-24
A74: 73 | B74: 8 | C74: 12 | D74: 200 | E74: -4 | F74: 4 | G74: 10 | H74: 5.88 | I74: OK | K74: 2015-03-03
A75: 74 | B75: 8 | C75: 5 | D75: 200 | E75: 3 | F75: 3 | G75: 6.5 | H75: 4.83190687 | I75: OK | K75: 2015-03-09
A76: 75 | B76: 16 | C76: 19 | D76: 200 | E76: -3 | F76: 3 | G76: 17.5 | H76: 7.447355235 | I76: OK | K76: 2015-03-11
A77: 76 | B77: 17 | C77: 22 | D77: 200 | E77: -5 | F77: 5 | G77: 19.5 | H77: 7.765533852 | I77: OK | K77: 2015-03-16
A78: 77 | B78: 17 | C78: 21 | D78: 200 | E78: -4 | F78: 4 | G78: 19 | H78: 7.689097736 | I78: OK | K78: 2015-03-18
A79: 78 | B79: 3 | C79: 5 | D79: 200 | E79: -2 | F79: 2 | G79: 4 | H79: 3.840799917 | I79: OK | K79: 2015-03-30
A80: 79 | B80: 9 | C80: 6 | D80: 200 | E80: 3 | F80: 3 | G80: 7.5 | H80: 5.162470339 | I80: OK | K80: 2015-04-13
A81: 80 | B81: 17 | C81: 22 | D81: 200 | E81: -5 | F81: 5 | G81: 19.5 | H81: 7.765533852 | I81: OK | K81: 2015-04-20
A82: 81 | B82: 24 | C82: 20 | D82: 200 | E82: 4 | F82: 4 | G82: 22 | H82: 8.119227549 | I82: OK | K82: 2015-04-21
A83: 82 | B83: 23 | C83: 20 | D83: 200 | E83: 3 | F83: 3 | G83: 21.5 | H83: 8.052117982 | I83: OK | K83: 2015-04-22
A84: 83 | B84: 19 | C84: 16 | D84: 200 | E84: 3 | F84: 3 | G84: 17.5 | H84: 7.447355235 | I84: OK | K84: 2015-04-27
A85: 84 | B85: 20 | C85: 25 | D85: 200 | E85: -5 | F85: 5 | G85: 22.5 | H85: 8.184613613 | I85: OK | K85: 2015-04-28
A86: 85 | B86: 24 | C86: 28 | D86: 200 | E86: -4 | F86: 4 | G86: 26 | H86: 8.597231182 | I86: OK | K86: 2015-05-26
A87: 86 | B87: 14 | C87: 10 | D87: 200 | E87: 4 | F87: 4 | G87: 12 | H87: 6.369246109 | I87: OK | K87: 2015-06-22
A88: 87 | B88: 14 | C88: 8 | D88: 200 | E88: 6 | F88: 6 | G88: 11 | H88: 6.132639236 | I88: OK | K88: 2015-06-29
A89: 88 | B89: 6 | C89: 10 | D89: 200 | E89: -4 | F89: 4 | G89: 8 | H89: 5.317346707 | I89: OK | K89: 2015-07-13
A90: 89 | B90: 19 | C90: 22 | D90: 200 | E90: -3 | F90: 3 | G90: 20.5 | H90: 7.912551801 | I90: OK | K90: 2015-07-21
A91: 90 | B91: 5 | C91: 7 | D91: 200 | E91: -2 | F91: 2 | G91: 6 | H91: 4.654742098 | I91: OK | K91: 2015-07-22
A92: 91 | B92: 17 | C92: 16 | D92: 200 | E92: 1 | F92: 1 | G92: 16.5 | H92: 7.275138762 | I92: OK | K92: 2015-07-27
A93: 92 | B93: 20 | C93: 25 | D93: 200 | E93: -5 | F93: 5 | G93: 22.5 | H93: 8.184613613 | I93: OK | K93: 2015-08-04
A94: 93 | B94: 4 | C94: 7 | D94: 200 | E94: -3 | F94: 3 | G94: 5.5 | H94: 4.468413141 | I94: OK | K94: 2015-08-11
A95: 94 | B95: 12 | C95: 9 | D95: 200 | E95: 3 | F95: 3 | G95: 10.5 | H95: 6.008447054 | I95: OK | K95: 2015-08-12
A96: 95 | B96: 17 | C96: 20 | D96: 200 | E96: -3 | F96: 3 | G96: 18.5 | H96: 7.6106323 | I96: OK | K96: 2015-09-07
A97: 96 | B97: 19 | C97: 22 | D97: 200 | E97: -3 | F97: 3 | G97: 20.5 | H97: 7.912551801 | I97: OK | K97: 2015-09-15
A98: 97 | B98: 15 | C98: 19 | D98: 200 | E98: -4 | F98: 4 | G98: 17 | H98: 7.362402869 | I98: OK | K98: 2015-09-16
A99: 98 | B99: 12 | C99: 10 | D99: 200 | E99: 2 | F99: 2 | G99: 11 | H99: 6.132639236 | I99: OK | K99: 2015-09-21
A100: 99 | B100: 23 | C100: 26 | D100: 200 | E100: -3 | F100: 3 | G100: 24.5 | H100: 8.429709129 | I100: OK | K100: 2015-10-05
A101: 100 | B101: 27 | C101: 23 | D101: 200 | E101: 4 | F101: 4 | G101: 25 | H101: 8.487048957 | I101: OK | K101: 2015-10-06
A102: 101 | B102: 7 | C102: 9 | D102: 200 | E102: -2 | F102: 2 | G102: 8 | H102: 5.317346707 | I102: OK | K102: 2015-10-12
A103: 102 | B103: 0 | C103: 0 | D103: 0 | E103: 0 | F103: 0 | G103: 0 | K103: 2015-10-13
A104: 103 | B104: 19 | C104: 16 | D104: 200 | E104: 3 | F104: 3 | G104: 17.5 | H104: 7.447355235 | I104: OK | K104: 2015-10-13
A105: 104 | B105: 14 | C105: 19 | D105: 200 | E105: -5 | F105: 5 | G105: 16.5 | H105: 7.275138762 | I105: OK | K105: 2015-10-14
A106: 105 | B106: 16 | C106: 12 | D106: 200 | E106: 4 | F106: 4 | G106: 14 | H106: 6.800945817 | I106: OK | K106: 2015-10-19
A107: 106 | B107: 9 | C107: 13 | D107: 200 | E107: -4 | F107: 4 | G107: 11 | H107: 6.132639236 | I107: OK | K107: 2015-10-20
A108: 107 | B108: 7 | C108: 10 | D108: 200 | E108: -3 | F108: 3 | G108: 8.5 | H108: 5.466081229 | I108: OK | K108: 2015-10-26
A109: 108 | B109: 13 | C109: 16 | D109: 200 | E109: -3 | F109: 3 | G109: 14.5 | H109: 6.901176421 | I109: OK | K109: 2015-10-27
A110: 109 | B110: 13 | C110: 9 | D110: 200 | E110: 4 | F110: 4 | G110: 11 | H110: 6.132639236 | I110: OK | K110: 2015-10-28
A111: 110
A112: 111
A113: 112
A114: 113
A115: 114
A116: 115
A117: 116
A118: 117
A119: 118
A120: 119
A121: 120
A122: 121
A123: 122 | E123: 0 | F123: 0
A124: 123 | E124: 0 | F124: 0
D127: n= | E127: =COUNT(B2:B126) -> 109
D128: MW diff= | E128: =AVERAGE(E2:E124) -> -1.243243243
D129: Median= | E129: =MEDIAN(E2:E124) -> -2
D130: s(diff)= | E130: =STDEV(E2:E124) -> 3.534804138
D131: Prüfgröße= | E131: =1.96*E130/SQRT(E127) -> 0.6636027501
B134: MW diff soll kleiner sein als die Prüfgröße
